Workbook

Sheet Daily Pick 3
J1: Disimulate | N1: Enter Number of Samples Here | T1: (1 to 1500)
J2: A | K2: B | L2: C | O2: Last Two Draws
J3: =IF(J4-1>=0,J4-1,9) -> 0 | K3: 8 | L3: 6 | M3: ← -1 | O3: =LastNPosition(E$8:E$1507,2) -> 6 | P3: =LastNPosition(F$8:F$1507,2) -> 6 | Q3: =LastNPosition(G$8:G$1507,2) -> 1 | R3: Z₂ | T3: Red Box Threshold | X3: (0.00 to 1.00)
J4: =Disimulate($I$8:$I$17,J$8:J$17) -> 1 | K4: =Disimulate($I$8:$I$17,K$8:K$17) -> 9 | L4: =Disimulate($I$8:$I$17,L$8:L$17) -> 7 | M4: ← 0 | O4: =LastNPosition(E$8:E$1507,1) -> 4 | P4: =LastNPosition(F$8:F$1507,1) -> 2 | Q4: =LastNPosition(G$8:G$1507,1) -> 2 | R4: Z₁ | T4: DisimulateNexus
J5: =IF(J4+1<=9,J4+1,0) -> 2 | K5: 0 | L5: 8 | M5: ← +1 | T5: Distribution | Y5: Normalized | AD5: Inverted
E6: Draws | J6: Distribution | N6: 30 | O6: DisimulateNexus | S6: 0.5 | T6: Standard | Y6: Standard | AD6: Standard
A7: Index | B7: Year | C7: Month | D7: Day | E7: A | F7: B | G7: C | I7: Number | J7: A | K7: B | L7: C | N7: Index | O7: A | P7: B | Q7: C | S7: Number | T7: A | U7: B | V7: C | X7: Number | Y7: A | Z7: B | AA7: C | AC7: Number | AD7: A | AE7: B | AF7: C
A8: 1 | B8: 2015 | C8: 1 | D8: 1 | E8: 8 | F8: 1 | G8: 5 | I8: 0 | J8: =FrequencyCount(E$8:E$1507,$I8) -> 24 | K8: =FrequencyCount(F$8:F$1507,$I8) -> 19 | L8: =FrequencyCount(G$8:G$1507,$I8) -> 16 | N8: =IF(N6>0,1,"") -> 1 | O8: =IF(ISNUMBER($N8),DisimulateNexus($I$8:$I$17,J$8:J$17,O$3,O$4),"") -> 4 | P8: =IF(ISNUMBER($N8),DisimulateNexus($I$8:$I$17,K$8:K$17,P$3,P$4),"") -> 6 | Q8: =IF(ISNUMBER($N8),DisimulateNexus($I$8:$I$17,L$8:L$17,Q$3,Q$4),"") -> 9 | S8: 0 | T8: =FrequencyCount(O$8:O$1507,$S8) -> 4 | U8: =FrequencyCount(P$8:P$1507,$S8) -> 0 | V8: =FrequencyCount(Q$8:Q$1507,$S8) -> 0 | X8: 0 | Y8: =(T8-T$18+1)/(T$19-T$18+2) -> 0.7142857143 | Z8: =(U8-U$18+1)/(U$19-U$18+2) -> 0.125 | AA8: =(V8-V$18+1)/(V$19-V$18+2) -> 0.125 | AC8: 0 | AD8: =1-Y8 -> 0.2857142857 | AE8: =1-Z8 -> 0.875 | AF8: =1-AA8 -> 0.875
A9: 2 | B9: 2015 | C9: 1 | D9: 2 | E9: 0 | F9: 6 | G9: 9 | I9: 1 | J9: 18 | K9: 20 | L9: 16 | N9: =IF(ISNUMBER(N8),IF(N8+1<=N$6,N8+1,""),"") -> 2 | O9: =IF(ISNUMBER($N9),DisimulateNexus($I$8:$I$17,J$8:J$17,O$3,O$4),"") -> 3 | P9: =IF(ISNUMBER($N9),DisimulateNexus($I$8:$I$17,K$8:K$17,P$3,P$4),"") -> 2 | Q9: =IF(ISNUMBER($N9),DisimulateNexus($I$8:$I$17,L$8:L$17,Q$3,Q$4),"") -> 6 | S9: 1 | T9: 3 | U9: 2 | V9: 0 | X9: 1 | Y9: 0.5714285714 | Z9: 0.375 | AA9: 0.125 | AC9: 1 | AD9: 0.4285714286 | AE9: 0.625 | AF9: 0.875
A10: 3 | B10: 2015 | C10: 1 | D10: 3 | E10: 5 | F10: 4 | G10: 9 | I10: 2 | J10: 16 | K10: 19 | L10: 31 | N10: 3 | O10: =IF(ISNUMBER($N10),DisimulateNexus($I$8:$I$17,J$8:J$17,O$3,O$4),"") -> 9 | P10: =IF(ISNUMBER($N10),DisimulateNexus($I$8:$I$17,K$8:K$17,P$3,P$4),"") -> 4 | Q10: =IF(ISNUMBER($N10),DisimulateNexus($I$8:$I$17,L$8:L$17,Q$3,Q$4),"") -> 4 | S10: 2 | T10: 2 | U10: 3 | V10: 0 | X10: 2 | Y10: 0.4285714286 | Z10: 0.5 | AA10: 0.125 | AC10: 2 | AD10: 0.5714285714 | AE10: 0.5 | AF10: 0.875
A11: 4 | B11: 2015 | C11: 1 | D11: 4 | E11: 5 | F11: 3 | G11: 9 | I11: 3 | J11: 20 | K11: 22 | L11: 14 | N11: 4 | O11: =IF(ISNUMBER($N11),DisimulateNexus($I$8:$I$17,J$8:J$17,O$3,O$4),"") -> 5 | P11: =IF(ISNUMBER($N11),DisimulateNexus($I$8:$I$17,K$8:K$17,P$3,P$4),"") -> 3 | Q11: =IF(ISNUMBER($N11),DisimulateNexus($I$8:$I$17,L$8:L$17,Q$3,Q$4),"") -> 9 | S11: 3 | T11: 3 | U11: 5 | V11: 0 | X11: 3 | Y11: 0.5714285714 | Z11: 0.75 | AA11: 0.125 | AC11: 3 | AD11: 0.4285714286 | AE11: 0.25 | AF11: 0.875
A12: 5 | B12: 2015 | C12: 1 | D12: 5 | E12: 4 | F12: 7 | G12: 5 | I12: 4 | J12: 14 | K12: 17 | L12: 17 | N12: 5 | O12: =IF(ISNUMBER($N12),DisimulateNexus($I$8:$I$17,J$8:J$17,O$3,O$4),"") -> 0 | P12: =IF(ISNUMBER($N12),DisimulateNexus($I$8:$I$17,K$8:K$17,P$3,P$4),"") -> 5 | Q12: =IF(ISNUMBER($N12),DisimulateNexus($I$8:$I$17,L$8:L$17,Q$3,Q$4),"") -> 4 | S12: 4 | T12: 5 | U12: 6 | V12: 6 | X12: 4 | Y12: 0.8571428571 | Z12: 0.875 | AA12: 0.875 | AC12: 4 | AD12: 0.1428571429 | AE12: 0.125 | AF12: 0.125
A13: 6 | B13: 2015 | C13: 1 | D13: 6 | E13: 6 | F13: 0 | G13: 2 | I13: 5 | J13: 22 | K13: 15 | L13: 16 | N13: 6 | O13: =IF(ISNUMBER($N13),DisimulateNexus($I$8:$I$17,J$8:J$17,O$3,O$4),"") -> 1 | P13: =IF(ISNUMBER($N13),DisimulateNexus($I$8:$I$17,K$8:K$17,P$3,P$4),"") -> 2 | Q13: =IF(ISNUMBER($N13),DisimulateNexus($I$8:$I$17,L$8:L$17,Q$3,Q$4),"") -> 8 | S13: 5 | T13: 5 | U13: 3 | V13: 4 | X13: 5 | Y13: 0.8571428571 | Z13: 0.5 | AA13: 0.625 | AC13: 5 | AD13: 0.1428571429 | AE13: 0.5 | AF13: 0.375
A14: 7 | B14: 2015 | C14: 1 | D14: 7 | E14: 8 | F14: 2 | G14: 4 | I14: 6 | J14: 17 | K14: 17 | L14: 20 | N14: 7 | O14: =IF(ISNUMBER($N14),DisimulateNexus($I$8:$I$17,J$8:J$17,O$3,O$4),"") -> 4 | P14: =IF(ISNUMBER($N14),DisimulateNexus($I$8:$I$17,K$8:K$17,P$3,P$4),"") -> 8 | Q14: =IF(ISNUMBER($N14),DisimulateNexus($I$8:$I$17,L$8:L$17,Q$3,Q$4),"") -> 8 | S14: 6 | T14: 2 | U14: 3 | V14: 4 | X14: 6 | Y14: 0.4285714286 | Z14: 0.5 | AA14: 0.625 | AC14: 6 | AD14: 0.5714285714 | AE14: 0.5 | AF14: 0.375
A15: 8 | B15: 2015 | C15: 1 | D15: 8 | E15: 0 | F15: 0 | G15: 8 | I15: 7 | J15: 23 | K15: 23 | L15: 17 | N15: 8 | O15: =IF(ISNUMBER($N15),DisimulateNexus($I$8:$I$17,J$8:J$17,O$3,O$4),"") -> 7 | P15: =IF(ISNUMBER($N15),DisimulateNexus($I$8:$I$17,K$8:K$17,P$3,P$4),"") -> 3 | Q15: =IF(ISNUMBER($N15),DisimulateNexus($I$8:$I$17,L$8:L$17,Q$3,Q$4),"") -> 4 | S15: 7 | T15: 5 | U15: 1 | V15: 5 | X15: 7 | Y15: 0.8571428571 | Z15: 0.25 | AA15: 0.75 | AC15: 7 | AD15: 0.1428571429 | AE15: 0.75 | AF15: 0.25
A16: 9 | B16: 2015 | C16: 1 | D16: 9 | E16: 4 | F16: 7 | G16: 9 | I16: 8 | J16: 15 | K16: 20 | L16: 16 | N16: 9 | O16: =IF(ISNUMBER($N16),DisimulateNexus($I$8:$I$17,J$8:J$17,O$3,O$4),"") -> 5 | P16: =IF(ISNUMBER($N16),DisimulateNexus($I$8:$I$17,K$8:K$17,P$3,P$4),"") -> 5 | Q16: =IF(ISNUMBER($N16),DisimulateNexus($I$8:$I$17,L$8:L$17,Q$3,Q$4),"") -> 8 | S16: 8 | T16: 0 | U16: 6 | V16: 6 | X16: 8 | Y16: 0.1428571429 | Z16: 0.875 | AA16: 0.875 | AC16: 8 | AD16: 0.8571428571 | AE16: 0.125 | AF16: 0.125
A17: 10 | B17: 2015 | C17: 1 | D17: 10 | E17: 0 | F17: 9 | G17: 6 | I17: 9 | J17: 22 | K17: 19 | L17: 28 | N17: 10 | O17: =IF(ISNUMBER($N17),DisimulateNexus($I$8:$I$17,J$8:J$17,O$3,O$4),"") -> 7 | P17: =IF(ISNUMBER($N17),DisimulateNexus($I$8:$I$17,K$8:K$17,P$3,P$4),"") -> 8 | Q17: =IF(ISNUMBER($N17),DisimulateNexus($I$8:$I$17,L$8:L$17,Q$3,Q$4),"") -> 5 | S17: 9 | T17: 1 | U17: 1 | V17: 5 | X17: 9 | Y17: 0.2857142857 | Z17: 0.25 | AA17: 0.75 | AC17: 9 | AD17: 0.7142857143 | AE17: 0.75 | AF17: 0.25
A18: 11 | B18: 2015 | C18: 1 | D18: 11 | E18: 6 | F18: 8 | G18: 3 | N18: 11 | O18: =IF(ISNUMBER($N18),DisimulateNexus($I$8:$I$17,J$8:J$17,O$3,O$4),"") -> 0 | P18: =IF(ISNUMBER($N18),DisimulateNexus($I$8:$I$17,K$8:K$17,P$3,P$4),"") -> 8 | Q18: =IF(ISNUMBER($N18),DisimulateNexus($I$8:$I$17,L$8:L$17,Q$3,Q$4),"") -> 4 | S18: Min | T18: =MIN(T8:T17) -> 0 | U18: =MIN(U8:U17) -> 0 | V18: 0
A19: 12 | B19: 2015 | C19: 1 | D19: 12 | E19: 6 | F19: 9 | G19: 4 | N19: 12 | O19: =IF(ISNUMBER($N19),DisimulateNexus($I$8:$I$17,J$8:J$17,O$3,O$4),"") -> 2 | P19: =IF(ISNUMBER($N19),DisimulateNexus($I$8:$I$17,K$8:K$17,P$3,P$4),"") -> 6 | Q19: =IF(ISNUMBER($N19),DisimulateNexus($I$8:$I$17,L$8:L$17,Q$3,Q$4),"") -> 7 | S19: Max | T19: =MAX(T8:T17) -> 5 | U19: =MAX(U8:U17) -> 6 | V19: 6
A20: 13 | B20: 2015 | C20: 1 | D20: 13 | E20: 9 | F20: 8 | G20: 2 | N20: 13 | O20: =IF(ISNUMBER($N20),DisimulateNexus($I$8:$I$17,J$8:J$17,O$3,O$4),"") -> 7 | P20: =IF(ISNUMBER($N20),DisimulateNexus($I$8:$I$17,K$8:K$17,P$3,P$4),"") -> 4 | Q20: =IF(ISNUMBER($N20),DisimulateNexus($I$8:$I$17,L$8:L$17,Q$3,Q$4),"") -> 8
A21: 14 | B21: 2015 | C21: 1 | D21: 14 | E21: 0 | F21: 5 | G21: 9 | N21: 14 | O21: =IF(ISNUMBER($N21),DisimulateNexus($I$8:$I$17,J$8:J$17,O$3,O$4),"") -> 2 | P21: =IF(ISNUMBER($N21),DisimulateNexus($I$8:$I$17,K$8:K$17,P$3,P$4),"") -> 1 | Q21: =IF(ISNUMBER($N21),DisimulateNexus($I$8:$I$17,L$8:L$17,Q$3,Q$4),"") -> 8 | T21: Distribution | Y21: Normalized | AD21: Inverted
A22: 15 | B22: 2015 | C22: 1 | D22: 15 | E22: 9 | F22: 0 | G22: 7 | N22: 15 | O22: =IF(ISNUMBER($N22),DisimulateNexus($I$8:$I$17,J$8:J$17,O$3,O$4),"") -> 6 | P22: =IF(ISNUMBER($N22),DisimulateNexus($I$8:$I$17,K$8:K$17,P$3,P$4),"") -> 4 | Q22: =IF(ISNUMBER($N22),DisimulateNexus($I$8:$I$17,L$8:L$17,Q$3,Q$4),"") -> 9 | T22: Folded | Y22: Folded | AD22: Folded
A23: 16 | B23: 2015 | C23: 1 | D23: 16 | E23: 3 | F23: 1 | G23: 2 | N23: 16 | O23: =IF(ISNUMBER($N23),DisimulateNexus($I$8:$I$17,J$8:J$17,O$3,O$4),"") -> 7 | P23: =IF(ISNUMBER($N23),DisimulateNexus($I$8:$I$17,K$8:K$17,P$3,P$4),"") -> 8 | Q23: =IF(ISNUMBER($N23),DisimulateNexus($I$8:$I$17,L$8:L$17,Q$3,Q$4),"") -> 6 | S23: Number | T23: A | U23: B | V23: C | X23: Number | Y23: A | Z23: B | AA23: C | AC23: Number | AD23: A | AE23: B | AF23: C
A24: 17 | B24: 2015 | C24: 1 | D24: 17 | E24: 9 | F24: 5 | G24: 2 | N24: 17 | O24: =IF(ISNUMBER($N24),DisimulateNexus($I$8:$I$17,J$8:J$17,O$3,O$4),"") -> 3 | P24: =IF(ISNUMBER($N24),DisimulateNexus($I$8:$I$17,K$8:K$17,P$3,P$4),"") -> 8 | Q24: =IF(ISNUMBER($N24),DisimulateNexus($I$8:$I$17,L$8:L$17,Q$3,Q$4),"") -> 7 | S24: 0 | T24: =ABS((1/2)*(T$19+T$18)-T8)+1 -> 2.5 | U24: 4 | V24: 4 | X24: 0 | Y24: =(T24-T$34+1)/(T$35-T$34+2) -> 0.5 | Z24: =(U24-U$34+1)/(U$35-U$34+2) -> 0.8 | AA24: =(V24-V$34+1)/(V$35-V$34+2) -> 0.75 | AC24: 0 | AD24: =1-Y24 -> 0.5 | AE24: =1-Z24 -> 0.2 | AF24: =1-AA24 -> 0.25
A25: 18 | B25: 2015 | C25: 1 | D25: 18 | E25: 6 | F25: 4 | G25: 0 | N25: 18 | O25: =IF(ISNUMBER($N25),DisimulateNexus($I$8:$I$17,J$8:J$17,O$3,O$4),"") -> 1 | P25: =IF(ISNUMBER($N25),DisimulateNexus($I$8:$I$17,K$8:K$17,P$3,P$4),"") -> 4 | Q25: =IF(ISNUMBER($N25),DisimulateNexus($I$8:$I$17,L$8:L$17,Q$3,Q$4),"") -> 5 | S25: 1 | T25: 1.5 | U25: 2 | V25: 4 | X25: 1 | Y25: 0.25 | Z25: 0.4 | AA25: 0.75 | AC25: 1 | AD25: 0.75 | AE25: 0.6 | AF25: 0.25
A26: 19 | B26: 2015 | C26: 1 | D26: 19 | E26: 9 | F26: 4 | G26: 0 | N26: 19 | O26: =IF(ISNUMBER($N26),DisimulateNexus($I$8:$I$17,J$8:J$17,O$3,O$4),"") -> 5 | P26: =IF(ISNUMBER($N26),DisimulateNexus($I$8:$I$17,K$8:K$17,P$3,P$4),"") -> 8 | Q26: =IF(ISNUMBER($N26),DisimulateNexus($I$8:$I$17,L$8:L$17,Q$3,Q$4),"") -> 6 | S26: 2 | T26: 1.5 | U26: 1 | V26: 4 | X26: 2 | Y26: 0.25 | Z26: 0.2 | AA26: 0.75 | AC26: 2 | AD26: 0.75 | AE26: 0.8 | AF26: 0.25
A27: 20 | B27: 2015 | C27: 1 | D27: 20 | E27: 9 | F27: 2 | G27: 3 | N27: 20 | O27: =IF(ISNUMBER($N27),DisimulateNexus($I$8:$I$17,J$8:J$17,O$3,O$4),"") -> 5 | P27: =IF(ISNUMBER($N27),DisimulateNexus($I$8:$I$17,K$8:K$17,P$3,P$4),"") -> 7 | Q27: =IF(ISNUMBER($N27),DisimulateNexus($I$8:$I$17,L$8:L$17,Q$3,Q$4),"") -> 4 | S27: 3 | T27: 1.5 | U27: 3 | V27: 4 | X27: 3 | Y27: 0.25 | Z27: 0.6 | AA27: 0.75 | AC27: 3 | AD27: 0.75 | AE27: 0.4 | AF27: 0.25
A28: 21 | B28: 2015 | C28: 1 | D28: 21 | E28: 7 | F28: 5 | G28: 8 | N28: 21 | O28: =IF(ISNUMBER($N28),DisimulateNexus($I$8:$I$17,J$8:J$17,O$3,O$4),"") -> 7 | P28: =IF(ISNUMBER($N28),DisimulateNexus($I$8:$I$17,K$8:K$17,P$3,P$4),"") -> 3 | Q28: =IF(ISNUMBER($N28),DisimulateNexus($I$8:$I$17,L$8:L$17,Q$3,Q$4),"") -> 4 | S28: 4 | T28: 3.5 | U28: 4 | V28: 4 | X28: 4 | Y28: 0.75 | Z28: 0.8 | AA28: 0.75 | AC28: 4 | AD28: 0.25 | AE28: 0.2 | AF28: 0.25
A29: 22 | B29: 2015 | C29: 1 | D29: 22 | E29: 6 | F29: 1 | G29: 3 | N29: 22 | O29: =IF(ISNUMBER($N29),DisimulateNexus($I$8:$I$17,J$8:J$17,O$3,O$4),"") -> 1 | P29: =IF(ISNUMBER($N29),DisimulateNexus($I$8:$I$17,K$8:K$17,P$3,P$4),"") -> 3 | Q29: =IF(ISNUMBER($N29),DisimulateNexus($I$8:$I$17,L$8:L$17,Q$3,Q$4),"") -> 6 | S29: 5 | T29: 3.5 | U29: 1 | V29: 2 | X29: 5 | Y29: 0.75 | Z29: 0.2 | AA29: 0.25 | AC29: 5 | AD29: 0.25 | AE29: 0.8 | AF29: 0.75
A30: 23 | B30: 2015 | C30: 1 | D30: 23 | E30: 6 | F30: 8 | G30: 4 | N30: 23 | O30: =IF(ISNUMBER($N30),DisimulateNexus($I$8:$I$17,J$8:J$17,O$3,O$4),"") -> 6 | P30: =IF(ISNUMBER($N30),DisimulateNexus($I$8:$I$17,K$8:K$17,P$3,P$4),"") -> 9 | Q30: =IF(ISNUMBER($N30),DisimulateNexus($I$8:$I$17,L$8:L$17,Q$3,Q$4),"") -> 7 | S30: 6 | T30: 1.5 | U30: 1 | V30: 2 | X30: 6 | Y30: 0.25 | Z30: 0.2 | AA30: 0.25 | AC30: 6 | AD30: 0.75 | AE30: 0.8 | AF30: 0.75
A31: 24 | B31: 2015 | C31: 1 | D31: 24 | E31: 9 | F31: 8 | G31: 5 | N31: 24 | O31: =IF(ISNUMBER($N31),DisimulateNexus($I$8:$I$17,J$8:J$17,O$3,O$4),"") -> 0 | P31: =IF(ISNUMBER($N31),DisimulateNexus($I$8:$I$17,K$8:K$17,P$3,P$4),"") -> 3 | Q31: =IF(ISNUMBER($N31),DisimulateNexus($I$8:$I$17,L$8:L$17,Q$3,Q$4),"") -> 5 | S31: 7 | T31: 3.5 | U31: 3 | V31: 3 | X31: 7 | Y31: 0.75 | Z31: 0.6 | AA31: 0.5 | AC31: 7 | AD31: 0.25 | AE31: 0.4 | AF31: 0.5
A32: 25 | B32: 2015 | C32: 1 | D32: 25 | E32: 4 | F32: 7 | G32: 9 | N32: 25 | O32: =IF(ISNUMBER($N32),DisimulateNexus($I$8:$I$17,J$8:J$17,O$3,O$4),"") -> 3 | P32: =IF(ISNUMBER($N32),DisimulateNexus($I$8:$I$17,K$8:K$17,P$3,P$4),"") -> 4 | Q32: =IF(ISNUMBER($N32),DisimulateNexus($I$8:$I$17,L$8:L$17,Q$3,Q$4),"") -> 8 | S32: 8 | T32: 3.5 | U32: 4 | V32: 4 | X32: 8 | Y32: 0.75 | Z32: 0.8 | AA32: 0.75 | AC32: 8 | AD32: 0.25 | AE32: 0.2 | AF32: 0.25
A33: 26 | B33: 2015 | C33: 1 | D33: 26 | E33: 4 | F33: 3 | G33: 6 | N33: 26 | O33: =IF(ISNUMBER($N33),DisimulateNexus($I$8:$I$17,J$8:J$17,O$3,O$4),"") -> 5 | P33: =IF(ISNUMBER($N33),DisimulateNexus($I$8:$I$17,K$8:K$17,P$3,P$4),"") -> 5 | Q33: =IF(ISNUMBER($N33),DisimulateNexus($I$8:$I$17,L$8:L$17,Q$3,Q$4),"") -> 9 | S33: 9 | T33: 2.5 | U33: 3 | V33: 3 | X33: 9 | Y33: 0.5 | Z33: 0.6 | AA33: 0.5 | AC33: 9 | AD33: 0.5 | AE33: 0.4 | AF33: 0.5
A34: 27 | B34: 2015 | C34: 1 | D34: 27 | E34: 7 | F34: 7 | G34: 2 | N34: 27 | O34: =IF(ISNUMBER($N34),DisimulateNexus($I$8:$I$17,J$8:J$17,O$3,O$4),"") -> 4 | P34: =IF(ISNUMBER($N34),DisimulateNexus($I$8:$I$17,K$8:K$17,P$3,P$4),"") -> 6 | Q34: =IF(ISNUMBER($N34),DisimulateNexus($I$8:$I$17,L$8:L$17,Q$3,Q$4),"") -> 5 | S34: Min | T34: =MIN(T24:T33) -> 1.5 | U34: =MIN(U24:U33) -> 1 | V34: 2
A35: 28 | B35: 2015 | C35: 1 | D35: 28 | E35: 2 | F35: 3 | G35: 7 | N35: 28 | O35: =IF(ISNUMBER($N35),DisimulateNexus($I$8:$I$17,J$8:J$17,O$3,O$4),"") -> 4 | P35: =IF(ISNUMBER($N35),DisimulateNexus($I$8:$I$17,K$8:K$17,P$3,P$4),"") -> 1 | Q35: =IF(ISNUMBER($N35),DisimulateNexus($I$8:$I$17,L$8:L$17,Q$3,Q$4),"") -> 7 | S35: Max | T35: =MAX(T24:T33) -> 3.5 | U35: =MAX(U24:U33) -> 4 | V35: 4
A36: 29 | B36: 2015 | C36: 1 | D36: 29 | E36: 5 | F36: 0 | G36: 1 | N36: 29 | O36: =IF(ISNUMBER($N36),DisimulateNexus($I$8:$I$17,J$8:J$17,O$3,O$4),"") -> 0 | P36: =IF(ISNUMBER($N36),DisimulateNexus($I$8:$I$17,K$8:K$17,P$3,P$4),"") -> 4 | Q36: =IF(ISNUMBER($N36),DisimulateNexus($I$8:$I$17,L$8:L$17,Q$3,Q$4),"") -> 7
A37: 30 | B37: 2015 | C37: 1 | D37: 30 | E37: 9 | F37: 2 | G37: 2 | N37: 30 | O37: =IF(ISNUMBER($N37),DisimulateNexus($I$8:$I$17,J$8:J$17,O$3,O$4),"") -> 4 | P37: =IF(ISNUMBER($N37),DisimulateNexus($I$8:$I$17,K$8:K$17,P$3,P$4),"") -> 2 | Q37: =IF(ISNUMBER($N37),DisimulateNexus($I$8:$I$17,L$8:L$17,Q$3,Q$4),"") -> 9
A38: 31 | B38: 2015 | C38: 1 | D38: 31 | E38: 5 | F38: 8 | G38: 6 | O38: =IF(ISNUMBER($N38),DisimulateNexus($I$8:$I$17,J$8:J$17,O$3,O$4),"") ->  | P38: =IF(ISNUMBER($N38),DisimulateNexus($I$8:$I$17,K$8:K$17,P$3,P$4),"") ->  | Q38: =IF(ISNUMBER($N38),DisimulateNexus($I$8:$I$17,L$8:L$17,Q$3,Q$4),"") -> 
A39: 32 | B39: 2015 | C39: 2 | D39: 1 | E39: 5 | F39: 6 | G39: 2 | O39: =IF(ISNUMBER($N39),DisimulateNexus($I$8:$I$17,J$8:J$17,O$3,O$4),"") ->  | P39: =IF(ISNUMBER($N39),DisimulateNexus($I$8:$I$17,K$8:K$17,P$3,P$4),"") ->  | Q39: =IF(ISNUMBER($N39),DisimulateNexus($I$8:$I$17,L$8:L$17,Q$3,Q$4),"") -> 
A40: 33 | B40: 2015 | C40: 2 | D40: 2 | E40: 7 | F40: 9 | G40: 7 | O40: =IF(ISNUMBER($N40),DisimulateNexus($I$8:$I$17,J$8:J$17,O$3,O$4),"") ->  | P40: =IF(ISNUMBER($N40),DisimulateNexus($I$8:$I$17,K$8:K$17,P$3,P$4),"") ->  | Q40: =IF(ISNUMBER($N40),DisimulateNexus($I$8:$I$17,L$8:L$17,Q$3,Q$4),"") -> 
A41: 34 | B41: 2015 | C41: 2 | D41: 3 | E41: 6 | F41: 2 | G41: 9 | O41: =IF(ISNUMBER($N41),DisimulateNexus($I$8:$I$17,J$8:J$17,O$3,O$4),"") ->  | P41: =IF(ISNUMBER($N41),DisimulateNexus($I$8:$I$17,K$8:K$17,P$3,P$4),"") ->  | Q41: =IF(ISNUMBER($N41),DisimulateNexus($I$8:$I$17,L$8:L$17,Q$3,Q$4),"") -> 
A42: 35 | B42: 2015 | C42: 2 | D42: 4 | E42: 6 | F42: 8 | G42: 9 | O42: =IF(ISNUMBER($N42),DisimulateNexus($I$8:$I$17,J$8:J$17,O$3,O$4),"") ->  | P42: =IF(ISNUMBER($N42),DisimulateNexus($I$8:$I$17,K$8:K$17,P$3,P$4),"") ->  | Q42: =IF(ISNUMBER($N42),DisimulateNexus($I$8:$I$17,L$8:L$17,Q$3,Q$4),"") -> 
A43: 36 | B43: 2015 | C43: 2 | D43: 5 | E43: 8 | F43: 6 | G43: 9 | O43: =IF(ISNUMBER($N43),DisimulateNexus($I$8:$I$17,J$8:J$17,O$3,O$4),"") ->  | P43: =IF(ISNUMBER($N43),DisimulateNexus($I$8:$I$17,K$8:K$17,P$3,P$4),"") ->  | Q43: =IF(ISNUMBER($N43),DisimulateNexus($I$8:$I$17,L$8:L$17,Q$3,Q$4),"") -> 
A44: 37 | B44: 2015 | C44: 2 | D44: 6 | E44: 7 | F44: 4 | G44: 5 | O44: =IF(ISNUMBER($N44),DisimulateNexus($I$8:$I$17,J$8:J$17,O$3,O$4),"") ->  | P44: =IF(ISNUMBER($N44),DisimulateNexus($I$8:$I$17,K$8:K$17,P$3,P$4),"") ->  | Q44: =IF(ISNUMBER($N44),DisimulateNexus($I$8:$I$17,L$8:L$17,Q$3,Q$4),"") -> 
A45: 38 | B45: 2015 | C45: 2 | D45: 7 | E45: 7 | F45: 6 | G45: 5 | O45: =IF(ISNUMBER($N45),DisimulateNexus($I$8:$I$17,J$8:J$17,O$3,O$4),"") ->  | P45: =IF(ISNUMBER($N45),DisimulateNexus($I$8:$I$17,K$8:K$17,P$3,P$4),"") ->  | Q45: =IF(ISNUMBER($N45),DisimulateNexus($I$8:$I$17,L$8:L$17,Q$3,Q$4),"") -> 
A46: 39 | B46: 2015 | C46: 2 | D46: 8 | E46: 2 | F46: 7 | G46: 1 | O46: =IF(ISNUMBER($N46),DisimulateNexus($I$8:$I$17,J$8:J$17,O$3,O$4),"") ->  | P46: =IF(ISNUMBER($N46),DisimulateNexus($I$8:$I$17,K$8:K$17,P$3,P$4),"") ->  | Q46: =IF(ISNUMBER($N46),DisimulateNexus($I$8:$I$17,L$8:L$17,Q$3,Q$4),"") -> 
A47: 40 | B47: 2015 | C47: 2 | D47: 9 | E47: 0 | F47: 4 | G47: 8 | O47: =IF(ISNUMBER($N47),DisimulateNexus($I$8:$I$17,J$8:J$17,O$3,O$4),"") ->  | P47: =IF(ISNUMBER($N47),DisimulateNexus($I$8:$I$17,K$8:K$17,P$3,P$4),"") ->  | Q47: =IF(ISNUMBER($N47),DisimulateNexus($I$8:$I$17,L$8:L$17,Q$3,Q$4),"") -> 
A48: 41 | B48: 2015 | C48: 2 | D48: 10 | E48: 9 | F48: 8 | G48: 9 | O48: =IF(ISNUMBER($N48),DisimulateNexus($I$8:$I$17,J$8:J$17,O$3,O$4),"") ->  | P48: =IF(ISNUMBER($N48),DisimulateNexus($I$8:$I$17,K$8:K$17,P$3,P$4),"") ->  | Q48: =IF(ISNUMBER($N48),DisimulateNexus($I$8:$I$17,L$8:L$17,Q$3,Q$4),"") -> 
A49: 42 | B49: 2015 | C49: 2 | D49: 11 | E49: 9 | F49: 6 | G49: 0 | O49: =IF(ISNUMBER($N49),DisimulateNexus($I$8:$I$17,J$8:J$17,O$3,O$4),"") ->  | P49: =IF(ISNUMBER($N49),DisimulateNexus($I$8:$I$17,K$8:K$17,P$3,P$4),"") ->  | Q49: =IF(ISNUMBER($N49),DisimulateNexus($I$8:$I$17,L$8:L$17,Q$3,Q$4),"") -> 
A50: 43 | B50: 2015 | C50: 2 | D50: 12 | E50: 1 | F50: 7 | G50: 8 | O50: =IF(ISNUMBER($N50),DisimulateNexus($I$8:$I$17,J$8:J$17,O$3,O$4),"") ->  | P50: =IF(ISNUMBER($N50),DisimulateNexus($I$8:$I$17,K$8:K$17,P$3,P$4),"") ->  | Q50: =IF(ISNUMBER($N50),DisimulateNexus($I$8:$I$17,L$8:L$17,Q$3,Q$4),"") -> 
A51: 44 | B51: 2015 | C51: 2 | D51: 13 | E51: 3 | F51: 2 | G51: 2 | O51: =IF(ISNUMBER($N51),DisimulateNexus($I$8:$I$17,J$8:J$17,O$3,O$4),"") ->  | P51: =IF(ISNUMBER($N51),DisimulateNexus($I$8:$I$17,K$8:K$17,P$3,P$4),"") ->  | Q51: =IF(ISNUMBER($N51),DisimulateNexus($I$8:$I$17,L$8:L$17,Q$3,Q$4),"") -> 
A52: 45 | B52: 2015 | C52: 2 | D52: 14 | E52: 9 | F52: 3 | G52: 2 | O52: =IF(ISNUMBER($N52),DisimulateNexus($I$8:$I$17,J$8:J$17,O$3,O$4),"") ->  | P52: =IF(ISNUMBER($N52),DisimulateNexus($I$8:$I$17,K$8:K$17,P$3,P$4),"") ->  | Q52: =IF(ISNUMBER($N52),DisimulateNexus($I$8:$I$17,L$8:L$17,Q$3,Q$4),"") -> 
A53: 46 | B53: 2015 | C53: 2 | D53: 15 | E53: 8 | F53: 5 | G53: 2 | O53: =IF(ISNUMBER($N53),DisimulateNexus($I$8:$I$17,J$8:J$17,O$3,O$4),"") ->  | P53: =IF(ISNUMBER($N53),DisimulateNexus($I$8:$I$17,K$8:K$17,P$3,P$4),"") ->  | Q53: =IF(ISNUMBER($N53),DisimulateNexus($I$8:$I$17,L$8:L$17,Q$3,Q$4),"") -> 
A54: 47 | B54: 2015 | C54: 2 | D54: 16 | E54: 9 | F54: 0 | G54: 0 | O54: =IF(ISNUMBER($N54),DisimulateNexus($I$8:$I$17,J$8:J$17,O$3,O$4),"") ->  | P54: =IF(ISNUMBER($N54),DisimulateNexus($I$8:$I$17,K$8:K$17,P$3,P$4),"") ->  | Q54: =IF(ISNUMBER($N54),DisimulateNexus($I$8:$I$17,L$8:L$17,Q$3,Q$4),"") -> 
A55: 48 | B55: 2015 | C55: 2 | D55: 17 | E55: 0 | F55: 0 | G55: 4 | O55: =IF(ISNUMBER($N55),DisimulateNexus($I$8:$I$17,J$8:J$17,O$3,O$4),"") ->  | P55: =IF(ISNUMBER($N55),DisimulateNexus($I$8:$I$17,K$8:K$17,P$3,P$4),"") ->  | Q55: =IF(ISNUMBER($N55),DisimulateNexus($I$8:$I$17,L$8:L$17,Q$3,Q$4),"") -> 
A56: 49 | B56: 2015 | C56: 2 | D56: 18 | E56: 6 | F56: 4 | G56: 8 | O56: =IF(ISNUMBER($N56),DisimulateNexus($I$8:$I$17,J$8:J$17,O$3,O$4),"") ->  | P56: =IF(ISNUMBER($N56),DisimulateNexus($I$8:$I$17,K$8:K$17,P$3,P$4),"") ->  | Q56: =IF(ISNUMBER($N56),DisimulateNexus($I$8:$I$17,L$8:L$17,Q$3,Q$4),"") -> 
A57: 50 | B57: 2015 | C57: 2 | D57: 19 | E57: 7 | F57: 1 | G57: 9 | O57: =IF(ISNUMBER($N57),DisimulateNexus($I$8:$I$17,J$8:J$17,O$3,O$4),"") ->  | P57: =IF(ISNUMBER($N57),DisimulateNexus($I$8:$I$17,K$8:K$17,P$3,P$4),"") ->  | Q57: =IF(ISNUMBER($N57),DisimulateNexus($I$8:$I$17,L$8:L$17,Q$3,Q$4),"") -> 
A58: 51 | B58: 2015 | C58: 2 | D58: 20 | E58: 1 | F58: 3 | G58: 7 | O58: =IF(ISNUMBER($N58),DisimulateNexus($I$8:$I$17,J$8:J$17,O$3,O$4),"") ->  | P58: =IF(ISNUMBER($N58),DisimulateNexus($I$8:$I$17,K$8:K$17,P$3,P$4),"") ->  | Q58: =IF(ISNUMBER($N58),DisimulateNexus($I$8:$I$17,L$8:L$17,Q$3,Q$4),"") -> 
A59: 52 | B59: 2015 | C59: 2 | D59: 21 | E59: 1 | F59: 0 | G59: 2 | O59: =IF(ISNUMBER($N59),DisimulateNexus($I$8:$I$17,J$8:J$17,O$3,O$4),"") ->  | P59: =IF(ISNUMBER($N59),DisimulateNexus($I$8:$I$17,K$8:K$17,P$3,P$4),"") ->  | Q59: =IF(ISNUMBER($N59),DisimulateNexus($I$8:$I$17,L$8:L$17,Q$3,Q$4),"") -> 
A60: 53 | B60: 2015 | C60: 2 | D60: 22 | E60: 5 | F60: 7 | G60: 1 | O60: =IF(ISNUMBER($N60),DisimulateNexus($I$8:$I$17,J$8:J$17,O$3,O$4),"") ->  | P60: =IF(ISNUMBER($N60),DisimulateNexus($I$8:$I$17,K$8:K$17,P$3,P$4),"") ->  | Q60: =IF(ISNUMBER($N60),DisimulateNexus($I$8:$I$17,L$8:L$17,Q$3,Q$4),"") -> 
A61: 54 | B61: 2015 | C61: 2 | D61: 23 | E61: 2 | F61: 1 | G61: 3 | O61: =IF(ISNUMBER($N61),DisimulateNexus($I$8:$I$17,J$8:J$17,O$3,O$4),"") ->  | P61: =IF(ISNUMBER($N61),DisimulateNexus($I$8:$I$17,K$8:K$17,P$3,P$4),"") ->  | Q61: =IF(ISNUMBER($N61),DisimulateNexus($I$8:$I$17,L$8:L$17,Q$3,Q$4),"") -> 
A62: 55 | B62: 2015 | C62: 2 | D62: 24 | E62: 5 | F62: 4 | G62: 4 | O62: =IF(ISNUMBER($N62),DisimulateNexus($I$8:$I$17,J$8:J$17,O$3,O$4),"") ->  | P62: =IF(ISNUMBER($N62),DisimulateNexus($I$8:$I$17,K$8:K$17,P$3,P$4),"") ->  | Q62: =IF(ISNUMBER($N62),DisimulateNexus($I$8:$I$17,L$8:L$17,Q$3,Q$4),"") -> 
A63: 56 | B63: 2015 | C63: 2 | D63: 25 | E63: 0 | F63: 1 | G63: 0 | O63: =IF(ISNUMBER($N63),DisimulateNexus($I$8:$I$17,J$8:J$17,O$3,O$4),"") ->  | P63: =IF(ISNUMBER($N63),DisimulateNexus($I$8:$I$17,K$8:K$17,P$3,P$4),"") ->  | Q63: =IF(ISNUMBER($N63),DisimulateNexus($I$8:$I$17,L$8:L$17,Q$3,Q$4),"") -> 
A64: 57 | B64: 2015 | C64: 2 | D64: 26 | E64: 0 | F64: 9 | G64: 7 | O64: =IF(ISNUMBER($N64),DisimulateNexus($I$8:$I$17,J$8:J$17,O$3,O$4),"") ->  | P64: =IF(ISNUMBER($N64),DisimulateNexus($I$8:$I$17,K$8:K$17,P$3,P$4),"") ->  | Q64: =IF(ISNUMBER($N64),DisimulateNexus($I$8:$I$17,L$8:L$17,Q$3,Q$4),"") -> 
A65: 58 | B65: 2015 | C65: 2 | D65: 27 | E65: 8 | F65: 6 | G65: 7 | O65: =IF(ISNUMBER($N65),DisimulateNexus($I$8:$I$17,J$8:J$17,O$3,O$4),"") ->  | P65: =IF(ISNUMBER($N65),DisimulateNexus($I$8:$I$17,K$8:K$17,P$3,P$4),"") ->  | Q65: =IF(ISNUMBER($N65),DisimulateNexus($I$8:$I$17,L$8:L$17,Q$3,Q$4),"") -> 
A66: 59 | B66: 2015 | C66: 2 | D66: 28 | E66: 9 | F66: 6 | G66: 3 | O66: =IF(ISNUMBER($N66),DisimulateNexus($I$8:$I$17,J$8:J$17,O$3,O$4),"") ->  | P66: =IF(ISNUMBER($N66),DisimulateNexus($I$8:$I$17,K$8:K$17,P$3,P$4),"") ->  | Q66: =IF(ISNUMBER($N66),DisimulateNexus($I$8:$I$17,L$8:L$17,Q$3,Q$4),"") -> 
A67: 60 | B67: 2015 | C67: 3 | D67: 1 | E67: 8 | F67: 1 | G67: 6 | O67: =IF(ISNUMBER($N67),DisimulateNexus($I$8:$I$17,J$8:J$17,O$3,O$4),"") ->  | P67: =IF(ISNUMBER($N67),DisimulateNexus($I$8:$I$17,K$8:K$17,P$3,P$4),"") ->  | Q67: =IF(ISNUMBER($N67),DisimulateNexus($I$8:$I$17,L$8:L$17,Q$3,Q$4),"") -> 
A68: 61 | B68: 2015 | C68: 3 | D68: 2 | E68: 7 | F68: 9 | G68: 3 | O68: =IF(ISNUMBER($N68),DisimulateNexus($I$8:$I$17,J$8:J$17,O$3,O$4),"") ->  | P68: =IF(ISNUMBER($N68),DisimulateNexus($I$8:$I$17,K$8:K$17,P$3,P$4),"") ->  | Q68: =IF(ISNUMBER($N68),DisimulateNexus($I$8:$I$17,L$8:L$17,Q$3,Q$4),"") -> 
A69: 62 | B69: 2015 | C69: 3 | D69: 3 | E69: 9 | F69: 7 | G69: 2 | O69: =IF(ISNUMBER($N69),DisimulateNexus($I$8:$I$17,J$8:J$17,O$3,O$4),"") ->  | P69: =IF(ISNUMBER($N69),DisimulateNexus($I$8:$I$17,K$8:K$17,P$3,P$4),"") ->  | Q69: =IF(ISNUMBER($N69),DisimulateNexus($I$8:$I$17,L$8:L$17,Q$3,Q$4),"") -> 
A70: 63 | B70: 2015 | C70: 3 | D70: 4 | E70: 5 | F70: 1 | G70: 1 | O70: =IF(ISNUMBER($N70),DisimulateNexus($I$8:$I$17,J$8:J$17,O$3,O$4),"") ->  | P70: =IF(ISNUMBER($N70),DisimulateNexus($I$8:$I$17,K$8:K$17,P$3,P$4),"") ->  | Q70: =IF(ISNUMBER($N70),DisimulateNexus($I$8:$I$17,L$8:L$17,Q$3,Q$4),"") -> 
A71: 64 | B71: 2015 | C71: 3 | D71: 5 | E71: 0 | F71: 9 | G71: 1 | O71: =IF(ISNUMBER($N71),DisimulateNexus($I$8:$I$17,J$8:J$17,O$3,O$4),"") ->  | P71: =IF(ISNUMBER($N71),DisimulateNexus($I$8:$I$17,K$8:K$17,P$3,P$4),"") ->  | Q71: =IF(ISNUMBER($N71),DisimulateNexus($I$8:$I$17,L$8:L$17,Q$3,Q$4),"") -> 
A72: 65 | B72: 2015 | C72: 3 | D72: 6 | E72: 8 | F72: 2 | G72: 6 | O72: =IF(ISNUMBER($N72),DisimulateNexus($I$8:$I$17,J$8:J$17,O$3,O$4),"") ->  | P72: =IF(ISNUMBER($N72),DisimulateNexus($I$8:$I$17,K$8:K$17,P$3,P$4),"") ->  | Q72: =IF(ISNUMBER($N72),DisimulateNexus($I$8:$I$17,L$8:L$17,Q$3,Q$4),"") -> 
A73: 66 | B73: 2015 | C73: 3 | D73: 7 | E73: 3 | F73: 6 | G73: 6 | N73: =IF(ISNUMBER(N72),IF(N72+1<=N$6,N72+1,""),"") ->  | O73: =IF(ISNUMBER($N73),DisimulateNexus($I$8:$I$17,J$8:J$17,O$3,O$4),"") ->  | P73: =IF(ISNUMBER($N73),DisimulateNexus($I$8:$I$17,K$8:K$17,P$3,P$4),"") ->  | Q73: =IF(ISNUMBER($N73),DisimulateNexus($I$8:$I$17,L$8:L$17,Q$3,Q$4),"") -> 
A74: 67 | B74: 2015 | C74: 3 | D74: 8 | E74: 3 | F74: 1 | G74: 2 | O74: =IF(ISNUMBER($N74),DisimulateNexus($I$8:$I$17,J$8:J$17,O$3,O$4),"") ->  | P74: =IF(ISNUMBER($N74),DisimulateNexus($I$8:$I$17,K$8:K$17,P$3,P$4),"") ->  | Q74: =IF(ISNUMBER($N74),DisimulateNexus($I$8:$I$17,L$8:L$17,Q$3,Q$4),"") -> 
A75: 68 | B75: 2015 | C75: 3 | D75: 9 | E75: 9 | F75: 2 | G75: 7 | O75: =IF(ISNUMBER($N75),DisimulateNexus($I$8:$I$17,J$8:J$17,O$3,O$4),"") ->  | P75: =IF(ISNUMBER($N75),DisimulateNexus($I$8:$I$17,K$8:K$17,P$3,P$4),"") ->  | Q75: =IF(ISNUMBER($N75),DisimulateNexus($I$8:$I$17,L$8:L$17,Q$3,Q$4),"") -> 
A76: 69 | B76: 2015 | C76: 3 | D76: 10 | E76: 4 | F76: 3 | G76: 9 | O76: =IF(ISNUMBER($N76),DisimulateNexus($I$8:$I$17,J$8:J$17,O$3,O$4),"") ->  | P76: =IF(ISNUMBER($N76),DisimulateNexus($I$8:$I$17,K$8:K$17,P$3,P$4),"") ->  | Q76: =IF(ISNUMBER($N76),DisimulateNexus($I$8:$I$17,L$8:L$17,Q$3,Q$4),"") -> 
A77: 70 | B77: 2015 | C77: 3 | D77: 11 | E77: 0 | F77: 4 | G77: 8 | O77: =IF(ISNUMBER($N77),DisimulateNexus($I$8:$I$17,J$8:J$17,O$3,O$4),"") ->  | P77: =IF(ISNUMBER($N77),DisimulateNexus($I$8:$I$17,K$8:K$17,P$3,P$4),"") ->  | Q77: =IF(ISNUMBER($N77),DisimulateNexus($I$8:$I$17,L$8:L$17,Q$3,Q$4),"") -> 
A78: 71 | B78: 2015 | C78: 3 | D78: 12 | E78: 7 | F78: 0 | G78: 1 | O78: =IF(ISNUMBER($N78),DisimulateNexus($I$8:$I$17,J$8:J$17,O$3,O$4),"") ->  | P78: =IF(ISNUMBER($N78),DisimulateNexus($I$8:$I$17,K$8:K$17,P$3,P$4),"") ->  | Q78: =IF(ISNUMBER($N78),DisimulateNexus($I$8:$I$17,L$8:L$17,Q$3,Q$4),"") -> 
A79: 72 | B79: 2015 | C79: 3 | D79: 13 | E79: 5 | F79: 5 | G79: 1 | O79: =IF(ISNUMBER($N79),DisimulateNexus($I$8:$I$17,J$8:J$17,O$3,O$4),"") ->  | P79: =IF(ISNUMBER($N79),DisimulateNexus($I$8:$I$17,K$8:K$17,P$3,P$4),"") ->  | Q79: =IF(ISNUMBER($N79),DisimulateNexus($I$8:$I$17,L$8:L$17,Q$3,Q$4),"") -> 
A80: 73 | B80: 2015 | C80: 3 | D80: 14 | E80: 0 | F80: 3 | G80: 6 | O80: =IF(ISNUMBER($N80),DisimulateNexus($I$8:$I$17,J$8:J$17,O$3,O$4),"") ->  | P80: =IF(ISNUMBER($N80),DisimulateNexus($I$8:$I$17,K$8:K$17,P$3,P$4),"") ->  | Q80: =IF(ISNUMBER($N80),DisimulateNexus($I$8:$I$17,L$8:L$17,Q$3,Q$4),"") -> 
A81: 74 | B81: 2015 | C81: 3 | D81: 15 | E81: 7 | F81: 5 | G81: 3 | O81: =IF(ISNUMBER($N81),DisimulateNexus($I$8:$I$17,J$8:J$17,O$3,O$4),"") ->  | P81: =IF(ISNUMBER($N81),DisimulateNexus($I$8:$I$17,K$8:K$17,P$3,P$4),"") ->  | Q81: =IF(ISNUMBER($N81),DisimulateNexus($I$8:$I$17,L$8:L$17,Q$3,Q$4),"") -> 
A82: 75 | B82: 2015 | C82: 3 | D82: 16 | E82: 1 | F82: 8 | G82: 1 | O82: =IF(ISNUMBER($N82),DisimulateNexus($I$8:$I$17,J$8:J$17,O$3,O$4),"") ->  | P82: =IF(ISNUMBER($N82),DisimulateNexus($I$8:$I$17,K$8:K$17,P$3,P$4),"") ->  | Q82: =IF(ISNUMBER($N82),DisimulateNexus($I$8:$I$17,L$8:L$17,Q$3,Q$4),"") -> 
A83: 76 | B83: 2015 | C83: 3 | D83: 17 | E83: 5 | F83: 6 | G83: 5 | O83: =IF(ISNUMBER($N83),DisimulateNexus($I$8:$I$17,J$8:J$17,O$3,O$4),"") ->  | P83: =IF(ISNUMBER($N83),DisimulateNexus($I$8:$I$17,K$8:K$17,P$3,P$4),"") ->  | Q83: =IF(ISNUMBER($N83),DisimulateNexus($I$8:$I$17,L$8:L$17,Q$3,Q$4),"") -> 
A84: 77 | B84: 2015 | C84: 3 | D84: 18 | E84: 3 | F84: 8 | G84: 2 | O84: =IF(ISNUMBER($N84),DisimulateNexus($I$8:$I$17,J$8:J$17,O$3,O$4),"") ->  | P84: =IF(ISNUMBER($N84),DisimulateNexus($I$8:$I$17,K$8:K$17,P$3,P$4),"") ->  | Q84: =IF(ISNUMBER($N84),DisimulateNexus($I$8:$I$17,L$8:L$17,Q$3,Q$4),"") -> 
A85: 78 | B85: 2015 | C85: 3 | D85: 19 | E85: 1 | F85: 7 | G85: 2 | O85: =IF(ISNUMBER($N85),DisimulateNexus($I$8:$I$17,J$8:J$17,O$3,O$4),"") ->  | P85: =IF(ISNUMBER($N85),DisimulateNexus($I$8:$I$17,K$8:K$17,P$3,P$4),"") ->  | Q85: =IF(ISNUMBER($N85),DisimulateNexus($I$8:$I$17,L$8:L$17,Q$3,Q$4),"") -> 
A86: 79 | B86: 2015 | C86: 3 | D86: 20 | E86: 9 | F86: 8 | G86: 7 | O86: =IF(ISNUMBER($N86),DisimulateNexus($I$8:$I$17,J$8:J$17,O$3,O$4),"") ->  | P86: =IF(ISNUMBER($N86),DisimulateNexus($I$8:$I$17,K$8:K$17,P$3,P$4),"") ->  | Q86: =IF(ISNUMBER($N86),DisimulateNexus($I$8:$I$17,L$8:L$17,Q$3,Q$4),"") -> 
A87: 80 | B87: 2015 | C87: 3 | D87: 21 | E87: 5 | F87: 4 | G87: 6 | O87: =IF(ISNUMBER($N87),DisimulateNexus($I$8:$I$17,J$8:J$17,O$3,O$4),"") ->  | P87: =IF(ISNUMBER($N87),DisimulateNexus($I$8:$I$17,K$8:K$17,P$3,P$4),"") ->  | Q87: =IF(ISNUMBER($N87),DisimulateNexus($I$8:$I$17,L$8:L$17,Q$3,Q$4),"") -> 
A88: 81 | B88: 2015 | C88: 3 | D88: 22 | E88: 6 | F88: 1 | G88: 4 | O88: =IF(ISNUMBER($N88),DisimulateNexus($I$8:$I$17,J$8:J$17,O$3,O$4),"") ->  | P88: =IF(ISNUMBER($N88),DisimulateNexus($I$8:$I$17,K$8:K$17,P$3,P$4),"") ->  | Q88: =IF(ISNUMBER($N88),DisimulateNexus($I$8:$I$17,L$8:L$17,Q$3,Q$4),"") -> 
A89: 82 | B89: 2015 | C89: 3 | D89: 23 | E89: 8 | F89: 9 | G89: 8 | O89: =IF(ISNUMBER($N89),DisimulateNexus($I$8:$I$17,J$8:J$17,O$3,O$4),"") ->  | P89: =IF(ISNUMBER($N89),DisimulateNexus($I$8:$I$17,K$8:K$17,P$3,P$4),"") ->  | Q89: =IF(ISNUMBER($N89),DisimulateNexus($I$8:$I$17,L$8:L$17,Q$3,Q$4),"") -> 
A90: 83 | B90: 2015 | C90: 3 | D90: 24 | E90: 5 | F90: 7 | G90: 2 | O90: =IF(ISNUMBER($N90),DisimulateNexus($I$8:$I$17,J$8:J$17,O$3,O$4),"") ->  | P90: =IF(ISNUMBER($N90),DisimulateNexus($I$8:$I$17,K$8:K$17,P$3,P$4),"") ->  | Q90: =IF(ISNUMBER($N90),DisimulateNexus($I$8:$I$17,L$8:L$17,Q$3,Q$4),"") -> 
A91: 84 | B91: 2015 | C91: 3 | D91: 25 | E91: 3 | F91: 8 | G91: 6 | O91: =IF(ISNUMBER($N91),DisimulateNexus($I$8:$I$17,J$8:J$17,O$3,O$4),"") ->  | P91: =IF(ISNUMBER($N91),DisimulateNexus($I$8:$I$17,K$8:K$17,P$3,P$4),"") ->  | Q91: =IF(ISNUMBER($N91),DisimulateNexus($I$8:$I$17,L$8:L$17,Q$3,Q$4),"") -> 
A92: 85 | B92: 2015 | C92: 3 | D92: 26 | E92: 6 | F92: 5 | G92: 0 | O92: =IF(ISNUMBER($N92),DisimulateNexus($I$8:$I$17,J$8:J$17,O$3,O$4),"") ->  | P92: =IF(ISNUMBER($N92),DisimulateNexus($I$8:$I$17,K$8:K$17,P$3,P$4),"") ->  | Q92: =IF(ISNUMBER($N92),DisimulateNexus($I$8:$I$17,L$8:L$17,Q$3,Q$4),"") -> 
A93: 86 | B93: 2015 | C93: 3 | D93: 27 | E93: 1 | F93: 3 | G93: 2 | O93: =IF(ISNUMBER($N93),DisimulateNexus($I$8:$I$17,J$8:J$17,O$3,O$4),"") ->  | P93: =IF(ISNUMBER($N93),DisimulateNexus($I$8:$I$17,K$8:K$17,P$3,P$4),"") ->  | Q93: =IF(ISNUMBER($N93),DisimulateNexus($I$8:$I$17,L$8:L$17,Q$3,Q$4),"") -> 
A94: 87 | B94: 2015 | C94: 3 | D94: 28 | E94: 0 | F94: 8 | G94: 3 | O94: =IF(ISNUMBER($N94),DisimulateNexus($I$8:$I$17,J$8:J$17,O$3,O$4),"") ->  | P94: =IF(ISNUMBER($N94),DisimulateNexus($I$8:$I$17,K$8:K$17,P$3,P$4),"") ->  | Q94: =IF(ISNUMBER($N94),DisimulateNexus($I$8:$I$17,L$8:L$17,Q$3,Q$4),"") -> 
A95: 88 | B95: 2015 | C95: 3 | D95: 29 | E95: 3 | F95: 7 | G95: 1 | O95: =IF(ISNUMBER($N95),DisimulateNexus($I$8:$I$17,J$8:J$17,O$3,O$4),"") ->  | P95: =IF(ISNUMBER($N95),DisimulateNexus($I$8:$I$17,K$8:K$17,P$3,P$4),"") ->  | Q95: =IF(ISNUMBER($N95),DisimulateNexus($I$8:$I$17,L$8:L$17,Q$3,Q$4),"") -> 
A96: 89 | B96: 2015 | C96: 3 | D96: 30 | E96: 2 | F96: 4 | G96: 7 | O96: =IF(ISNUMBER($N96),DisimulateNexus($I$8:$I$17,J$8:J$17,O$3,O$4),"") ->  | P96: =IF(ISNUMBER($N96),DisimulateNexus($I$8:$I$17,K$8:K$17,P$3,P$4),"") ->  | Q96: =IF(ISNUMBER($N96),DisimulateNexus($I$8:$I$17,L$8:L$17,Q$3,Q$4),"") -> 
A97: 90 | B97: 2015 | C97: 3 | D97: 31 | E97: 0 | F97: 5 | G97: 0 | O97: =IF(ISNUMBER($N97),DisimulateNexus($I$8:$I$17,J$8:J$17,O$3,O$4),"") ->  | P97: =IF(ISNUMBER($N97),DisimulateNexus($I$8:$I$17,K$8:K$17,P$3,P$4),"") ->  | Q97: =IF(ISNUMBER($N97),DisimulateNexus($I$8:$I$17,L$8:L$17,Q$3,Q$4),"") -> 
A98: 91 | B98: 2015 | C98: 4 | D98: 1 | E98: 6 | F98: 9 | G98: 4 | O98: =IF(ISNUMBER($N98),DisimulateNexus($I$8:$I$17,J$8:J$17,O$3,O$4),"") ->  | P98: =IF(ISNUMBER($N98),DisimulateNexus($I$8:$I$17,K$8:K$17,P$3,P$4),"") ->  | Q98: =IF(ISNUMBER($N98),DisimulateNexus($I$8:$I$17,L$8:L$17,Q$3,Q$4),"") -> 
A99: 92 | B99: 2015 | C99: 4 | D99: 2 | E99: 9 | F99: 2 | G99: 3 | O99: =IF(ISNUMBER($N99),DisimulateNexus($I$8:$I$17,J$8:J$17,O$3,O$4),"") ->  | P99: =IF(ISNUMBER($N99),DisimulateNexus($I$8:$I$17,K$8:K$17,P$3,P$4),"") ->  | Q99: =IF(ISNUMBER($N99),DisimulateNexus($I$8:$I$17,L$8:L$17,Q$3,Q$4),"") -> 
A100: 93 | B100: 2015 | C100: 4 | D100: 3 | E100: 4 | F100: 0 | G100: 9 | O100: =IF(ISNUMBER($N100),DisimulateNexus($I$8:$I$17,J$8:J$17,O$3,O$4),"") ->  | P100: =IF(ISNUMBER($N100),DisimulateNexus($I$8:$I$17,K$8:K$17,P$3,P$4),"") ->  | Q100: =IF(ISNUMBER($N100),DisimulateNexus($I$8:$I$17,L$8:L$17,Q$3,Q$4),"") -> 
A101: 94 | B101: 2015 | C101: 4 | D101: 4 | E101: 3 | F101: 8 | G101: 6 | O101: =IF(ISNUMBER($N101),DisimulateNexus($I$8:$I$17,J$8:J$17,O$3,O$4),"") ->  | P101: =IF(ISNUMBER($N101),DisimulateNexus($I$8:$I$17,K$8:K$17,P$3,P$4),"") ->  | Q101: =IF(ISNUMBER($N101),DisimulateNexus($I$8:$I$17,L$8:L$17,Q$3,Q$4),"") -> 
A102: 95 | B102: 2015 | C102: 4 | D102: 5 | E102: 0 | F102: 2 | G102: 9 | O102: =IF(ISNUMBER($N102),DisimulateNexus($I$8:$I$17,J$8:J$17,O$3,O$4),"") ->  | P102: =IF(ISNUMBER($N102),DisimulateNexus($I$8:$I$17,K$8:K$17,P$3,P$4),"") ->  | Q102: =IF(ISNUMBER($N102),DisimulateNexus($I$8:$I$17,L$8:L$17,Q$3,Q$4),"") -> 
A103: 96 | B103: 2015 | C103: 4 | D103: 6 | E103: 2 | F103: 7 | G103: 4 | O103: =IF(ISNUMBER($N103),DisimulateNexus($I$8:$I$17,J$8:J$17,O$3,O$4),"") ->  | P103: =IF(ISNUMBER($N103),DisimulateNexus($I$8:$I$17,K$8:K$17,P$3,P$4),"") ->  | Q103: =IF(ISNUMBER($N103),DisimulateNexus($I$8:$I$17,L$8:L$17,Q$3,Q$4),"") -> 
A104: 97 | B104: 2015 | C104: 4 | D104: 7 | E104: 8 | F104: 1 | G104: 2 | O104: =IF(ISNUMBER($N104),DisimulateNexus($I$8:$I$17,J$8:J$17,O$3,O$4),"") ->  | P104: =IF(ISNUMBER($N104),DisimulateNexus($I$8:$I$17,K$8:K$17,P$3,P$4),"") ->  | Q104: =IF(ISNUMBER($N104),DisimulateNexus($I$8:$I$17,L$8:L$17,Q$3,Q$4),"") -> 
A105: 98 | B105: 2015 | C105: 4 | D105: 8 | E105: 7 | F105: 3 | G105: 4 | O105: =IF(ISNUMBER($N105),DisimulateNexus($I$8:$I$17,J$8:J$17,O$3,O$4),"") ->  | P105: =IF(ISNUMBER($N105),DisimulateNexus($I$8:$I$17,K$8:K$17,P$3,P$4),"") ->  | Q105: =IF(ISNUMBER($N105),DisimulateNexus($I$8:$I$17,L$8:L$17,Q$3,Q$4),"") -> 
A106: 99 | B106: 2015 | C106: 4 | D106: 9 | E106: 8 | F106: 4 | G106: 8 | O106: =IF(ISNUMBER($N106),DisimulateNexus($I$8:$I$17,J$8:J$17,O$3,O$4),"") ->  | P106: =IF(ISNUMBER($N106),DisimulateNexus($I$8:$I$17,K$8:K$17,P$3,P$4),"") ->  | Q106: =IF(ISNUMBER($N106),DisimulateNexus($I$8:$I$17,L$8:L$17,Q$3,Q$4),"") -> 
A107: 100 | B107: 2015 | C107: 4 | D107: 10 | E107: 3 | F107: 0 | G107: 9 | O107: =IF(ISNUMBER($N107),DisimulateNexus($I$8:$I$17,J$8:J$17,O$3,O$4),"") ->  | P107: =IF(ISNUMBER($N107),DisimulateNexus($I$8:$I$17,K$8:K$17,P$3,P$4),"") ->  | Q107: =IF(ISNUMBER($N107),DisimulateNexus($I$8:$I$17,L$8:L$17,Q$3,Q$4),"") -> 
A108: 101 | B108: 2015 | C108: 4 | D108: 11 | E108: 5 | F108: 5 | G108: 7 | O108: =IF(ISNUMBER($N108),DisimulateNexus($I$8:$I$17,J$8:J$17,O$3,O$4),"") ->  | P108: =IF(ISNUMBER($N108),DisimulateNexus($I$8:$I$17,K$8:K$17,P$3,P$4),"") ->  | Q108: =IF(ISNUMBER($N108),DisimulateNexus($I$8:$I$17,L$8:L$17,Q$3,Q$4),"") -> 
A109: 102 | B109: 2015 | C109: 4 | D109: 12 | E109: 7 | F109: 0 | G109: 7 | O109: =IF(ISNUMBER($N109),DisimulateNexus($I$8:$I$17,J$8:J$17,O$3,O$4),"") ->  | P109: =IF(ISNUMBER($N109),DisimulateNexus($I$8:$I$17,K$8:K$17,P$3,P$4),"") ->  | Q109: =IF(ISNUMBER($N109),DisimulateNexus($I$8:$I$17,L$8:L$17,Q$3,Q$4),"") -> 
A110: 103 | B110: 2015 | C110: 4 | D110: 13 | E110: 1 | F110: 1 | G110: 7 | O110: =IF(ISNUMBER($N110),DisimulateNexus($I$8:$I$17,J$8:J$17,O$3,O$4),"") ->  | P110: =IF(ISNUMBER($N110),DisimulateNexus($I$8:$I$17,K$8:K$17,P$3,P$4),"") ->  | Q110: =IF(ISNUMBER($N110),DisimulateNexus($I$8:$I$17,L$8:L$17,Q$3,Q$4),"") -> 
A111: 104 | B111: 2015 | C111: 4 | D111: 14 | E111: 0 | F111: 5 | G111: 0 | O111: =IF(ISNUMBER($N111),DisimulateNexus($I$8:$I$17,J$8:J$17,O$3,O$4),"") ->  | P111: =IF(ISNUMBER($N111),DisimulateNexus($I$8:$I$17,K$8:K$17,P$3,P$4),"") ->  | Q111: =IF(ISNUMBER($N111),DisimulateNexus($I$8:$I$17,L$8:L$17,Q$3,Q$4),"") -> 
A112: 105 | B112: 2015 | C112: 4 | D112: 15 | E112: 4 | F112: 8 | G112: 9 | O112: =IF(ISNUMBER($N112),DisimulateNexus($I$8:$I$17,J$8:J$17,O$3,O$4),"") ->  | P112: =IF(ISNUMBER($N112),DisimulateNexus($I$8:$I$17,K$8:K$17,P$3,P$4),"") ->  | Q112: =IF(ISNUMBER($N112),DisimulateNexus($I$8:$I$17,L$8:L$17,Q$3,Q$4),"") -> 
A113: 106 | B113: 2015 | C113: 4 | D113: 16 | E113: 1 | F113: 3 | G113: 2 | O113: =IF(ISNUMBER($N113),DisimulateNexus($I$8:$I$17,J$8:J$17,O$3,O$4),"") ->  | P113: =IF(ISNUMBER($N113),DisimulateNexus($I$8:$I$17,K$8:K$17,P$3,P$4),"") ->  | Q113: =IF(ISNUMBER($N113),DisimulateNexus($I$8:$I$17,L$8:L$17,Q$3,Q$4),"") -> 
A114: 107 | B114: 2015 | C114: 4 | D114: 17 | E114: 3 | F114: 5 | G114: 6 | O114: =IF(ISNUMBER($N114),DisimulateNexus($I$8:$I$17,J$8:J$17,O$3,O$4),"") ->  | P114: =IF(ISNUMBER($N114),DisimulateNexus($I$8:$I$17,K$8:K$17,P$3,P$4),"") ->  | Q114: =IF(ISNUMBER($N114),DisimulateNexus($I$8:$I$17,L$8:L$17,Q$3,Q$4),"") -> 
A115: 108 | B115: 2015 | C115: 4 | D115: 18 | E115: 3 | F115: 4 | G115: 9 | O115: =IF(ISNUMBER($N115),DisimulateNexus($I$8:$I$17,J$8:J$17,O$3,O$4),"") ->  | P115: =IF(ISNUMBER($N115),DisimulateNexus($I$8:$I$17,K$8:K$17,P$3,P$4),"") ->  | Q115: =IF(ISNUMBER($N115),DisimulateNexus($I$8:$I$17,L$8:L$17,Q$3,Q$4),"") -> 
A116: 109 | B116: 2015 | C116: 4 | D116: 19 | E116: 7 | F116: 4 | G116: 4 | O116: =IF(ISNUMBER($N116),DisimulateNexus($I$8:$I$17,J$8:J$17,O$3,O$4),"") ->  | P116: =IF(ISNUMBER($N116),DisimulateNexus($I$8:$I$17,K$8:K$17,P$3,P$4),"") ->  | Q116: =IF(ISNUMBER($N116),DisimulateNexus($I$8:$I$17,L$8:L$17,Q$3,Q$4),"") -> 
A117: 110 | B117: 2015 | C117: 4 | D117: 20 | E117: 6 | F117: 2 | G117: 5 | O117: =IF(ISNUMBER($N117),DisimulateNexus($I$8:$I$17,J$8:J$17,O$3,O$4),"") ->  | P117: =IF(ISNUMBER($N117),DisimulateNexus($I$8:$I$17,K$8:K$17,P$3,P$4),"") ->  | Q117: =IF(ISNUMBER($N117),DisimulateNexus($I$8:$I$17,L$8:L$17,Q$3,Q$4),"") -> 
A118: 111 | B118: 2015 | C118: 4 | D118: 21 | E118: 0 | F118: 0 | G118: 2 | O118: =IF(ISNUMBER($N118),DisimulateNexus($I$8:$I$17,J$8:J$17,O$3,O$4),"") ->  | P118: =IF(ISNUMBER($N118),DisimulateNexus($I$8:$I$17,K$8:K$17,P$3,P$4),"") ->  | Q118: =IF(ISNUMBER($N118),DisimulateNexus($I$8:$I$17,L$8:L$17,Q$3,Q$4),"") -> 
A119: 112 | B119: 2015 | C119: 4 | D119: 22 | E119: 2 | F119: 0 | G119: 0 | O119: =IF(ISNUMBER($N119),DisimulateNexus($I$8:$I$17,J$8:J$17,O$3,O$4),"") ->  | P119: =IF(ISNUMBER($N119),DisimulateNexus($I$8:$I$17,K$8:K$17,P$3,P$4),"") ->  | Q119: =IF(ISNUMBER($N119),DisimulateNexus($I$8:$I$17,L$8:L$17,Q$3,Q$4),"") -> 
A120: 113 | B120: 2015 | C120: 4 | D120: 23 | E120: 0 | F120: 1 | G120: 9 | O120: =IF(ISNUMBER($N120),DisimulateNexus($I$8:$I$17,J$8:J$17,O$3,O$4),"") ->  | P120: =IF(ISNUMBER($N120),DisimulateNexus($I$8:$I$17,K$8:K$17,P$3,P$4),"") ->  | Q120: =IF(ISNUMBER($N120),DisimulateNexus($I$8:$I$17,L$8:L$17,Q$3,Q$4),"") -> 
A121: 114 | B121: 2015 | C121: 4 | D121: 24 | E121: 5 | F121: 7 | G121: 6 | O121: =IF(ISNUMBER($N121),DisimulateNexus($I$8:$I$17,J$8:J$17,O$3,O$4),"") ->  | P121: =IF(ISNUMBER($N121),DisimulateNexus($I$8:$I$17,K$8:K$17,P$3,P$4),"") ->  | Q121: =IF(ISNUMBER($N121),DisimulateNexus($I$8:$I$17,L$8:L$17,Q$3,Q$4),"") -> 
A122: 115 | B122: 2015 | C122: 4 | D122: 25 | E122: 4 | F122: 0 | G122: 1 | O122: =IF(ISNUMBER($N122),DisimulateNexus($I$8:$I$17,J$8:J$17,O$3,O$4),"") ->  | P122: =IF(ISNUMBER($N122),DisimulateNexus($I$8:$I$17,K$8:K$17,P$3,P$4),"") ->  | Q122: =IF(ISNUMBER($N122),DisimulateNexus($I$8:$I$17,L$8:L$17,Q$3,Q$4),"") -> 
A123: 116 | B123: 2015 | C123: 4 | D123: 26 | E123: 7 | F123: 7 | G123: 0 | O123: =IF(ISNUMBER($N123),DisimulateNexus($I$8:$I$17,J$8:J$17,O$3,O$4),"") ->  | P123: =IF(ISNUMBER($N123),DisimulateNexus($I$8:$I$17,K$8:K$17,P$3,P$4),"") ->  | Q123: =IF(ISNUMBER($N123),DisimulateNexus($I$8:$I$17,L$8:L$17,Q$3,Q$4),"") -> 
A124: 117 | B124: 2015 | C124: 4 | D124: 27 | E124: 2 | F124: 0 | G124: 2 | O124: =IF(ISNUMBER($N124),DisimulateNexus($I$8:$I$17,J$8:J$17,O$3,O$4),"") ->  | P124: =IF(ISNUMBER($N124),DisimulateNexus($I$8:$I$17,K$8:K$17,P$3,P$4),"") ->  | Q124: =IF(ISNUMBER($N124),DisimulateNexus($I$8:$I$17,L$8:L$17,Q$3,Q$4),"") -> 
A125: 118 | B125: 2015 | C125: 4 | D125: 28 | E125: 1 | F125: 3 | G125: 2 | O125: =IF(ISNUMBER($N125),DisimulateNexus($I$8:$I$17,J$8:J$17,O$3,O$4),"") ->  | P125: =IF(ISNUMBER($N125),DisimulateNexus($I$8:$I$17,K$8:K$17,P$3,P$4),"") ->  | Q125: =IF(ISNUMBER($N125),DisimulateNexus($I$8:$I$17,L$8:L$17,Q$3,Q$4),"") -> 
A126: 119 | B126: 2015 | C126: 4 | D126: 29 | E126: 2 | F126: 1 | G126: 8 | O126: =IF(ISNUMBER($N126),DisimulateNexus($I$8:$I$17,J$8:J$17,O$3,O$4),"") ->  | P126: =IF(ISNUMBER($N126),DisimulateNexus($I$8:$I$17,K$8:K$17,P$3,P$4),"") ->  | Q126: =IF(ISNUMBER($N126),DisimulateNexus($I$8:$I$17,L$8:L$17,Q$3,Q$4),"") -> 
A127: 120 | B127: 2015 | C127: 4 | D127: 30 | E127: 1 | F127: 3 | G127: 8 | O127: =IF(ISNUMBER($N127),DisimulateNexus($I$8:$I$17,J$8:J$17,O$3,O$4),"") ->  | P127: =IF(ISNUMBER($N127),DisimulateNexus($I$8:$I$17,K$8:K$17,P$3,P$4),"") ->  | Q127: =IF(ISNUMBER($N127),DisimulateNexus($I$8:$I$17,L$8:L$17,Q$3,Q$4),"") -> 
A128: 121 | B128: 2015 | C128: 5 | D128: 1 | E128: 4 | F128: 5 | G128: 6 | O128: =IF(ISNUMBER($N128),DisimulateNexus($I$8:$I$17,J$8:J$17,O$3,O$4),"") ->  | P128: =IF(ISNUMBER($N128),DisimulateNexus($I$8:$I$17,K$8:K$17,P$3,P$4),"") ->  | Q128: =IF(ISNUMBER($N128),DisimulateNexus($I$8:$I$17,L$8:L$17,Q$3,Q$4),"") -> 
A129: 122 | B129: 2015 | C129: 5 | D129: 2 | E129: 9 | F129: 9 | G129: 7 | O129: =IF(ISNUMBER($N129),DisimulateNexus($I$8:$I$17,J$8:J$17,O$3,O$4),"") ->  | P129: =IF(ISNUMBER($N129),DisimulateNexus($I$8:$I$17,K$8:K$17,P$3,P$4),"") ->  | Q129: =IF(ISNUMBER($N129),DisimulateNexus($I$8:$I$17,L$8:L$17,Q$3,Q$4),"") -> 
A130: 123 | B130: 2015 | C130: 5 | D130: 3 | E130: 1 | F130: 9 | G130: 9 | O130: =IF(ISNUMBER($N130),DisimulateNexus($I$8:$I$17,J$8:J$17,O$3,O$4),"") ->  | P130: =IF(ISNUMBER($N130),DisimulateNexus($I$8:$I$17,K$8:K$17,P$3,P$4),"") ->  | Q130: =IF(ISNUMBER($N130),DisimulateNexus($I$8:$I$17,L$8:L$17,Q$3,Q$4),"") -> 
A131: 124 | B131: 2015 | C131: 5 | D131: 4 | E131: 9 | F131: 1 | G131: 6 | O131: =IF(ISNUMBER($N131),DisimulateNexus($I$8:$I$17,J$8:J$17,O$3,O$4),"") ->  | P131: =IF(ISNUMBER($N131),DisimulateNexus($I$8:$I$17,K$8:K$17,P$3,P$4),"") ->  | Q131: =IF(ISNUMBER($N131),DisimulateNexus($I$8:$I$17,L$8:L$17,Q$3,Q$4),"") -> 
A132: 125 | B132: 2015 | C132: 5 | D132: 5 | E132: 3 | F132: 2 | G132: 5 | O132: =IF(ISNUMBER($N132),DisimulateNexus($I$8:$I$17,J$8:J$17,O$3,O$4),"") ->  | P132: =IF(ISNUMBER($N132),DisimulateNexus($I$8:$I$17,K$8:K$17,P$3,P$4),"") ->  | Q132: =IF(ISNUMBER($N132),DisimulateNexus($I$8:$I$17,L$8:L$17,Q$3,Q$4),"") -> 
A133: 126 | B133: 2015 | C133: 5 | D133: 6 | E133: 7 | F133: 8 | G133: 3 | O133: =IF(ISNUMBER($N133),DisimulateNexus($I$8:$I$17,J$8:J$17,O$3,O$4),"") ->  | P133: =IF(ISNUMBER($N133),DisimulateNexus($I$8:$I$17,K$8:K$17,P$3,P$4),"") ->  | Q133: =IF(ISNUMBER($N133),DisimulateNexus($I$8:$I$17,L$8:L$17,Q$3,Q$4),"") -> 
A134: 127 | B134: 2015 | C134: 5 | D134: 7 | E134: 7 | F134: 9 | G134: 8 | O134: =IF(ISNUMBER($N134),DisimulateNexus($I$8:$I$17,J$8:J$17,O$3,O$4),"") ->  | P134: =IF(ISNUMBER($N134),DisimulateNexus($I$8:$I$17,K$8:K$17,P$3,P$4),"") ->  | Q134: =IF(ISNUMBER($N134),DisimulateNexus($I$8:$I$17,L$8:L$17,Q$3,Q$4),"") -> 
A135: 128 | B135: 2015 | C135: 5 | D135: 8 | E135: 5 | F135: 8 | G135: 3 | O135: =IF(ISNUMBER($N135),DisimulateNexus($I$8:$I$17,J$8:J$17,O$3,O$4),"") ->  | P135: =IF(ISNUMBER($N135),DisimulateNexus($I$8:$I$17,K$8:K$17,P$3,P$4),"") ->  | Q135: =IF(ISNUMBER($N135),DisimulateNexus($I$8:$I$17,L$8:L$17,Q$3,Q$4),"") -> 
A136: 129 | B136: 2015 | C136: 5 | D136: 9 | E136: 1 | F136: 0 | G136: 2 | O136: =IF(ISNUMBER($N136),DisimulateNexus($I$8:$I$17,J$8:J$17,O$3,O$4),"") ->  | P136: =IF(ISNUMBER($N136),DisimulateNexus($I$8:$I$17,K$8:K$17,P$3,P$4),"") ->  | Q136: =IF(ISNUMBER($N136),DisimulateNexus($I$8:$I$17,L$8:L$17,Q$3,Q$4),"") -> 
A137: 130 | B137: 2015 | C137: 5 | D137: 10 | E137: 3 | F137: 4 | G137: 2 | N137: =IF(ISNUMBER(N136),IF(N136+1<=N$6,N136+1,""),"") ->  | O137: =IF(ISNUMBER($N137),DisimulateNexus($I$8:$I$17,J$8:J$17,O$3,O$4),"") ->  | P137: =IF(ISNUMBER($N137),DisimulateNexus($I$8:$I$17,K$8:K$17,P$3,P$4),"") ->  | Q137: =IF(ISNUMBER($N137),DisimulateNexus($I$8:$I$17,L$8:L$17,Q$3,Q$4),"") -> 
A138: 131 | B138: 2015 | C138: 5 | D138: 11 | E138: 5 | F138: 3 | G138: 4 | O138: =IF(ISNUMBER($N138),DisimulateNexus($I$8:$I$17,J$8:J$17,O$3,O$4),"") ->  | P138: =IF(ISNUMBER($N138),DisimulateNexus($I$8:$I$17,K$8:K$17,P$3,P$4),"") ->  | Q138: =IF(ISNUMBER($N138),DisimulateNexus($I$8:$I$17,L$8:L$17,Q$3,Q$4),"") -> 
A139: 132 | B139: 2015 | C139: 5 | D139: 12 | E139: 7 | F139: 9 | G139: 7 | O139: =IF(ISNUMBER($N139),DisimulateNexus($I$8:$I$17,J$8:J$17,O$3,O$4),"") ->  | P139: =IF(ISNUMBER($N139),DisimulateNexus($I$8:$I$17,K$8:K$17,P$3,P$4),"") ->  | Q139: =IF(ISNUMBER($N139),DisimulateNexus($I$8:$I$17,L$8:L$17,Q$3,Q$4),"") -> 
A140: 133 | B140: 2015 | C140: 5 | D140: 13 | E140: 9 | F140: 8 | G140: 0 | O140: =IF(ISNUMBER($N140),DisimulateNexus($I$8:$I$17,J$8:J$17,O$3,O$4),"") ->  | P140: =IF(ISNUMBER($N140),DisimulateNexus($I$8:$I$17,K$8:K$17,P$3,P$4),"") ->  | Q140: =IF(ISNUMBER($N140),DisimulateNexus($I$8:$I$17,L$8:L$17,Q$3,Q$4),"") -> 
A141: 134 | B141: 2015 | C141: 5 | D141: 14 | E141: 2 | F141: 6 | G141: 6 | O141: =IF(ISNUMBER($N141),DisimulateNexus($I$8:$I$17,J$8:J$17,O$3,O$4),"") ->  | P141: =IF(ISNUMBER($N141),DisimulateNexus($I$8:$I$17,K$8:K$17,P$3,P$4),"") ->  | Q141: =IF(ISNUMBER($N141),DisimulateNexus($I$8:$I$17,L$8:L$17,Q$3,Q$4),"") -> 
A142: 135 | B142: 2015 | C142: 5 | D142: 15 | E142: 9 | F142: 7 | G142: 5 | O142: =IF(ISNUMBER($N142),DisimulateNexus($I$8:$I$17,J$8:J$17,O$3,O$4),"") ->  | P142: =IF(ISNUMBER($N142),DisimulateNexus($I$8:$I$17,K$8:K$17,P$3,P$4),"") ->  | Q142: =IF(ISNUMBER($N142),DisimulateNexus($I$8:$I$17,L$8:L$17,Q$3,Q$4),"") -> 
A143: 136 | B143: 2015 | C143: 5 | D143: 16 | E143: 8 | F143: 3 | G143: 3 | O143: =IF(ISNUMBER($N143),DisimulateNexus($I$8:$I$17,J$8:J$17,O$3,O$4),"") ->  | P143: =IF(ISNUMBER($N143),DisimulateNexus($I$8:$I$17,K$8:K$17,P$3,P$4),"") ->  | Q143: =IF(ISNUMBER($N143),DisimulateNexus($I$8:$I$17,L$8:L$17,Q$3,Q$4),"") -> 
A144: 137 | B144: 2015 | C144: 5 | D144: 17 | E144: 0 | F144: 0 | G144: 9 | O144: =IF(ISNUMBER($N144),DisimulateNexus($I$8:$I$17,J$8:J$17,O$3,O$4),"") ->  | P144: =IF(ISNUMBER($N144),DisimulateNexus($I$8:$I$17,K$8:K$17,P$3,P$4),"") ->  | Q144: =IF(ISNUMBER($N144),DisimulateNexus($I$8:$I$17,L$8:L$17,Q$3,Q$4),"") -> 
A145: 138 | B145: 2015 | C145: 5 | D145: 18 | E145: 3 | F145: 3 | G145: 3 | O145: =IF(ISNUMBER($N145),DisimulateNexus($I$8:$I$17,J$8:J$17,O$3,O$4),"") ->  | P145: =IF(ISNUMBER($N145),DisimulateNexus($I$8:$I$17,K$8:K$17,P$3,P$4),"") ->  | Q145: =IF(ISNUMBER($N145),DisimulateNexus($I$8:$I$17,L$8:L$17,Q$3,Q$4),"") -> 
A146: 139 | B146: 2015 | C146: 5 | D146: 19 | E146: 9 | F146: 3 | G146: 2 | O146: =IF(ISNUMBER($N146),DisimulateNexus($I$8:$I$17,J$8:J$17,O$3,O$4),"") ->  | P146: =IF(ISNUMBER($N146),DisimulateNexus($I$8:$I$17,K$8:K$17,P$3,P$4),"") ->  | Q146: =IF(ISNUMBER($N146),DisimulateNexus($I$8:$I$17,L$8:L$17,Q$3,Q$4),"") -> 
A147: 140 | B147: 2015 | C147: 5 | D147: 20 | E147: 8 | F147: 2 | G147: 0 | O147: =IF(ISNUMBER($N147),DisimulateNexus($I$8:$I$17,J$8:J$17,O$3,O$4),"") ->  | P147: =IF(ISNUMBER($N147),DisimulateNexus($I$8:$I$17,K$8:K$17,P$3,P$4),"") ->  | Q147: =IF(ISNUMBER($N147),DisimulateNexus($I$8:$I$17,L$8:L$17,Q$3,Q$4),"") -> 
A148: 141 | B148: 2015 | C148: 5 | D148: 21 | E148: 4 | F148: 7 | G148: 1 | O148: =IF(ISNUMBER($N148),DisimulateNexus($I$8:$I$17,J$8:J$17,O$3,O$4),"") ->  | P148: =IF(ISNUMBER($N148),DisimulateNexus($I$8:$I$17,K$8:K$17,P$3,P$4),"") ->  | Q148: =IF(ISNUMBER($N148),DisimulateNexus($I$8:$I$17,L$8:L$17,Q$3,Q$4),"") -> 
A149: 142 | B149: 2015 | C149: 5 | D149: 22 | E149: 2 | F149: 7 | G149: 5 | O149: =IF(ISNUMBER($N149),DisimulateNexus($I$8:$I$17,J$8:J$17,O$3,O$4),"") ->  | P149: =IF(ISNUMBER($N149),DisimulateNexus($I$8:$I$17,K$8:K$17,P$3,P$4),"") ->  | Q149: =IF(ISNUMBER($N149),DisimulateNexus($I$8:$I$17,L$8:L$17,Q$3,Q$4),"") -> 
A150: 143 | B150: 2015 | C150: 5 | D150: 23 | E150: 5 | F150: 2 | G150: 2 | O150: =IF(ISNUMBER($N150),DisimulateNexus($I$8:$I$17,J$8:J$17,O$3,O$4),"") ->  | P150: =IF(ISNUMBER($N150),DisimulateNexus($I$8:$I$17,K$8:K$17,P$3,P$4),"") ->  | Q150: =IF(ISNUMBER($N150),DisimulateNexus($I$8:$I$17,L$8:L$17,Q$3,Q$4),"") -> 
A151: 144 | B151: 2015 | C151: 5 | D151: 24 | E151: 2 | F151: 2 | G151: 9 | O151: =IF(ISNUMBER($N151),DisimulateNexus($I$8:$I$17,J$8:J$17,O$3,O$4),"") ->  | P151: =IF(ISNUMBER($N151),DisimulateNexus($I$8:$I$17,K$8:K$17,P$3,P$4),"") ->  | Q151: =IF(ISNUMBER($N151),DisimulateNexus($I$8:$I$17,L$8:L$17,Q$3,Q$4),"") -> 
A152: 145 | B152: 2015 | C152: 5 | D152: 25 | E152: 4 | F152: 9 | G152: 8 | O152: =IF(ISNUMBER($N152),DisimulateNexus($I$8:$I$17,J$8:J$17,O$3,O$4),"") ->  | P152: =IF(ISNUMBER($N152),DisimulateNexus($I$8:$I$17,K$8:K$17,P$3,P$4),"") ->  | Q152: =IF(ISNUMBER($N152),DisimulateNexus($I$8:$I$17,L$8:L$17,Q$3,Q$4),"") -> 
A153: 146 | B153: 2015 | C153: 5 | D153: 26 | E153: 2 | F153: 6 | G153: 9 | O153: =IF(ISNUMBER($N153),DisimulateNexus($I$8:$I$17,J$8:J$17,O$3,O$4),"") ->  | P153: =IF(ISNUMBER($N153),DisimulateNexus($I$8:$I$17,K$8:K$17,P$3,P$4),"") ->  | Q153: =IF(ISNUMBER($N153),DisimulateNexus($I$8:$I$17,L$8:L$17,Q$3,Q$4),"") -> 
A154: 147 | B154: 2015 | C154: 5 | D154: 27 | E154: 0 | F154: 3 | G154: 2 | O154: =IF(ISNUMBER($N154),DisimulateNexus($I$8:$I$17,J$8:J$17,O$3,O$4),"") ->  | P154: =IF(ISNUMBER($N154),DisimulateNexus($I$8:$I$17,K$8:K$17,P$3,P$4),"") ->  | Q154: =IF(ISNUMBER($N154),DisimulateNexus($I$8:$I$17,L$8:L$17,Q$3,Q$4),"") -> 
A155: 148 | B155: 2015 | C155: 5 | D155: 28 | E155: 1 | F155: 6 | G155: 6 | O155: =IF(ISNUMBER($N155),DisimulateNexus($I$8:$I$17,J$8:J$17,O$3,O$4),"") ->  | P155: =IF(ISNUMBER($N155),DisimulateNexus($I$8:$I$17,K$8:K$17,P$3,P$4),"") ->  | Q155: =IF(ISNUMBER($N155),DisimulateNexus($I$8:$I$17,L$8:L$17,Q$3,Q$4),"") -> 
A156: 149 | B156: 2015 | C156: 5 | D156: 29 | E156: 1 | F156: 9 | G156: 0 | O156: =IF(ISNUMBER($N156),DisimulateNexus($I$8:$I$17,J$8:J$17,O$3,O$4),"") ->  | P156: =IF(ISNUMBER($N156),DisimulateNexus($I$8:$I$17,K$8:K$17,P$3,P$4),"") ->  | Q156: =IF(ISNUMBER($N156),DisimulateNexus($I$8:$I$17,L$8:L$17,Q$3,Q$4),"") -> 
A157: 150 | B157: 2015 | C157: 5 | D157: 30 | E157: 8 | F157: 3 | G157: 7 | O157: =IF(ISNUMBER($N157),DisimulateNexus($I$8:$I$17,J$8:J$17,O$3,O$4),"") ->  | P157: =IF(ISNUMBER($N157),DisimulateNexus($I$8:$I$17,K$8:K$17,P$3,P$4),"") ->  | Q157: =IF(ISNUMBER($N157),DisimulateNexus($I$8:$I$17,L$8:L$17,Q$3,Q$4),"") -> 
A158: 151 | B158: 2015 | C158: 5 | D158: 31 | E158: 2 | F158: 8 | G158: 5 | O158: =IF(ISNUMBER($N158),DisimulateNexus($I$8:$I$17,J$8:J$17,O$3,O$4),"") ->  | P158: =IF(ISNUMBER($N158),DisimulateNexus($I$8:$I$17,K$8:K$17,P$3,P$4),"") ->  | Q158: =IF(ISNUMBER($N158),DisimulateNexus($I$8:$I$17,L$8:L$17,Q$3,Q$4),"") -> 
A159: 152 | B159: 2015 | C159: 6 | D159: 1 | E159: 4 | F159: 9 | G159: 4 | O159: =IF(ISNUMBER($N159),DisimulateNexus($I$8:$I$17,J$8:J$17,O$3,O$4),"") ->  | P159: =IF(ISNUMBER($N159),DisimulateNexus($I$8:$I$17,K$8:K$17,P$3,P$4),"") ->  | Q159: =IF(ISNUMBER($N159),DisimulateNexus($I$8:$I$17,L$8:L$17,Q$3,Q$4),"") -> 
A160: 153 | B160: 2015 | C160: 6 | D160: 2 | E160: 9 | F160: 3 | G160: 4 | O160: =IF(ISNUMBER($N160),DisimulateNexus($I$8:$I$17,J$8:J$17,O$3,O$4),"") ->  | P160: =IF(ISNUMBER($N160),DisimulateNexus($I$8:$I$17,K$8:K$17,P$3,P$4),"") ->  | Q160: =IF(ISNUMBER($N160),DisimulateNexus($I$8:$I$17,L$8:L$17,Q$3,Q$4),"") -> 
A161: 154 | B161: 2015 | C161: 6 | D161: 3 | E161: 3 | F161: 1 | G161: 8 | O161: =IF(ISNUMBER($N161),DisimulateNexus($I$8:$I$17,J$8:J$17,O$3,O$4),"") ->  | P161: =IF(ISNUMBER($N161),DisimulateNexus($I$8:$I$17,K$8:K$17,P$3,P$4),"") ->  | Q161: =IF(ISNUMBER($N161),DisimulateNexus($I$8:$I$17,L$8:L$17,Q$3,Q$4),"") -> 
A162: 155 | B162: 2015 | C162: 6 | D162: 4 | E162: 3 | F162: 0 | G162: 1 | O162: =IF(ISNUMBER($N162),DisimulateNexus($I$8:$I$17,J$8:J$17,O$3,O$4),"") ->  | P162: =IF(ISNUMBER($N162),DisimulateNexus($I$8:$I$17,K$8:K$17,P$3,P$4),"") ->  | Q162: =IF(ISNUMBER($N162),DisimulateNexus($I$8:$I$17,L$8:L$17,Q$3,Q$4),"") -> 
A163: 156 | B163: 2015 | C163: 6 | D163: 5 | E163: 7 | F163: 7 | G163: 0 | O163: =IF(ISNUMBER($N163),DisimulateNexus($I$8:$I$17,J$8:J$17,O$3,O$4),"") ->  | P163: =IF(ISNUMBER($N163),DisimulateNexus($I$8:$I$17,K$8:K$17,P$3,P$4),"") ->  | Q163: =IF(ISNUMBER($N163),DisimulateNexus($I$8:$I$17,L$8:L$17,Q$3,Q$4),"") -> 
A164: 157 | B164: 2015 | C164: 6 | D164: 6 | E164: 7 | F164: 9 | G164: 4 | O164: =IF(ISNUMBER($N164),DisimulateNexus($I$8:$I$17,J$8:J$17,O$3,O$4),"") ->  | P164: =IF(ISNUMBER($N164),DisimulateNexus($I$8:$I$17,K$8:K$17,P$3,P$4),"") ->  | Q164: =IF(ISNUMBER($N164),DisimulateNexus($I$8:$I$17,L$8:L$17,Q$3,Q$4),"") -> 
A165: 158 | B165: 2015 | C165: 6 | D165: 7 | E165: 7 | F165: 8 | G165: 1 | O165: =IF(ISNUMBER($N165),DisimulateNexus($I$8:$I$17,J$8:J$17,O$3,O$4),"") ->  | P165: =IF(ISNUMBER($N165),DisimulateNexus($I$8:$I$17,K$8:K$17,P$3,P$4),"") ->  | Q165: =IF(ISNUMBER($N165),DisimulateNexus($I$8:$I$17,L$8:L$17,Q$3,Q$4),"") -> 
A166: 159 | B166: 2015 | C166: 6 | D166: 8 | E166: 3 | F166: 5 | G166: 9 | O166: =IF(ISNUMBER($N166),DisimulateNexus($I$8:$I$17,J$8:J$17,O$3,O$4),"") ->  | P166: =IF(ISNUMBER($N166),DisimulateNexus($I$8:$I$17,K$8:K$17,P$3,P$4),"") ->  | Q166: =IF(ISNUMBER($N166),DisimulateNexus($I$8:$I$17,L$8:L$17,Q$3,Q$4),"") -> 
A167: 160 | B167: 2015 | C167: 6 | D167: 9 | E167: 5 | F167: 2 | G167: 7 | O167: =IF(ISNUMBER($N167),DisimulateNexus($I$8:$I$17,J$8:J$17,O$3,O$4),"") ->  | P167: =IF(ISNUMBER($N167),DisimulateNexus($I$8:$I$17,K$8:K$17,P$3,P$4),"") ->  | Q167: =IF(ISNUMBER($N167),DisimulateNexus($I$8:$I$17,L$8:L$17,Q$3,Q$4),"") -> 
A168: 161 | B168: 2015 | C168: 6 | D168: 10 | E168: 5 | F168: 3 | G168: 4 | O168: =IF(ISNUMBER($N168),DisimulateNexus($I$8:$I$17,J$8:J$17,O$3,O$4),"") ->  | P168: =IF(ISNUMBER($N168),DisimulateNexus($I$8:$I$17,K$8:K$17,P$3,P$4),"") ->  | Q168: =IF(ISNUMBER($N168),DisimulateNexus($I$8:$I$17,L$8:L$17,Q$3,Q$4),"") -> 
A169: 162 | B169: 2015 | C169: 6 | D169: 11 | E169: 0 | F169: 3 | G169: 6 | O169: =IF(ISNUMBER($N169),DisimulateNexus($I$8:$I$17,J$8:J$17,O$3,O$4),"") ->  | P169: =IF(ISNUMBER($N169),DisimulateNexus($I$8:$I$17,K$8:K$17,P$3,P$4),"") ->  | Q169: =IF(ISNUMBER($N169),DisimulateNexus($I$8:$I$17,L$8:L$17,Q$3,Q$4),"") -> 
A170: 163 | B170: 2015 | C170: 6 | D170: 12 | E170: 6 | F170: 3 | G170: 2 | O170: =IF(ISNUMBER($N170),DisimulateNexus($I$8:$I$17,J$8:J$17,O$3,O$4),"") ->  | P170: =IF(ISNUMBER($N170),DisimulateNexus($I$8:$I$17,K$8:K$17,P$3,P$4),"") ->  | Q170: =IF(ISNUMBER($N170),DisimulateNexus($I$8:$I$17,L$8:L$17,Q$3,Q$4),"") -> 
A171: 164 | B171: 2015 | C171: 6 | D171: 13 | E171: 7 | F171: 5 | G171: 8 | O171: =IF(ISNUMBER($N171),DisimulateNexus($I$8:$I$17,J$8:J$17,O$3,O$4),"") ->  | P171: =IF(ISNUMBER($N171),DisimulateNexus($I$8:$I$17,K$8:K$17,P$3,P$4),"") ->  | Q171: =IF(ISNUMBER($N171),DisimulateNexus($I$8:$I$17,L$8:L$17,Q$3,Q$4),"") -> 
A172: 165 | B172: 2015 | C172: 6 | D172: 14 | E172: 5 | F172: 1 | G172: 4 | O172: =IF(ISNUMBER($N172),DisimulateNexus($I$8:$I$17,J$8:J$17,O$3,O$4),"") ->  | P172: =IF(ISNUMBER($N172),DisimulateNexus($I$8:$I$17,K$8:K$17,P$3,P$4),"") ->  | Q172: =IF(ISNUMBER($N172),DisimulateNexus($I$8:$I$17,L$8:L$17,Q$3,Q$4),"") -> 
A173: 166 | B173: 2015 | C173: 6 | D173: 15 | E173: 0 | F173: 5 | G173: 6 | O173: =IF(ISNUMBER($N173),DisimulateNexus($I$8:$I$17,J$8:J$17,O$3,O$4),"") ->  | P173: =IF(ISNUMBER($N173),DisimulateNexus($I$8:$I$17,K$8:K$17,P$3,P$4),"") ->  | Q173: =IF(ISNUMBER($N173),DisimulateNexus($I$8:$I$17,L$8:L$17,Q$3,Q$4),"") -> 
A174: 167 | B174: 2015 | C174: 6 | D174: 16 | E174: 3 | F174: 0 | G174: 9 | O174: =IF(ISNUMBER($N174),DisimulateNexus($I$8:$I$17,J$8:J$17,O$3,O$4),"") ->  | P174: =IF(ISNUMBER($N174),DisimulateNexus($I$8:$I$17,K$8:K$17,P$3,P$4),"") ->  | Q174: =IF(ISNUMBER($N174),DisimulateNexus($I$8:$I$17,L$8:L$17,Q$3,Q$4),"") -> 
A175: 168 | B175: 2015 | C175: 6 | D175: 17 | E175: 0 | F175: 9 | G175: 8 | O175: =IF(ISNUMBER($N175),DisimulateNexus($I$8:$I$17,J$8:J$17,O$3,O$4),"") ->  | P175: =IF(ISNUMBER($N175),DisimulateNexus($I$8:$I$17,K$8:K$17,P$3,P$4),"") ->  | Q175: =IF(ISNUMBER($N175),DisimulateNexus($I$8:$I$17,L$8:L$17,Q$3,Q$4),"") -> 
A176: 169 | B176: 2015 | C176: 6 | D176: 18 | E176: 2 | F176: 6 | G176: 7 | O176: =IF(ISNUMBER($N176),DisimulateNexus($I$8:$I$17,J$8:J$17,O$3,O$4),"") ->  | P176: =IF(ISNUMBER($N176),DisimulateNexus($I$8:$I$17,K$8:K$17,P$3,P$4),"") ->  | Q176: =IF(ISNUMBER($N176),DisimulateNexus($I$8:$I$17,L$8:L$17,Q$3,Q$4),"") -> 
A177: 170 | B177: 2015 | C177: 6 | D177: 19 | E177: 5 | F177: 7 | G177: 2 | O177: =IF(ISNUMBER($N177),DisimulateNexus($I$8:$I$17,J$8:J$17,O$3,O$4),"") ->  | P177: =IF(ISNUMBER($N177),DisimulateNexus($I$8:$I$17,K$8:K$17,P$3,P$4),"") ->  | Q177: =IF(ISNUMBER($N177),DisimulateNexus($I$8:$I$17,L$8:L$17,Q$3,Q$4),"") -> 
A178: 171 | B178: 2015 | C178: 6 | D178: 20 | E178: 0 | F178: 4 | G178: 5 | O178: =IF(ISNUMBER($N178),DisimulateNexus($I$8:$I$17,J$8:J$17,O$3,O$4),"") ->  | P178: =IF(ISNUMBER($N178),DisimulateNexus($I$8:$I$17,K$8:K$17,P$3,P$4),"") ->  | Q178: =IF(ISNUMBER($N178),DisimulateNexus($I$8:$I$17,L$8:L$17,Q$3,Q$4),"") -> 
A179: 172 | B179: 2015 | C179: 6 | D179: 21 | E179: 1 | F179: 7 | G179: 1 | O179: =IF(ISNUMBER($N179),DisimulateNexus($I$8:$I$17,J$8:J$17,O$3,O$4),"") ->  | P179: =IF(ISNUMBER($N179),DisimulateNexus($I$8:$I$17,K$8:K$17,P$3,P$4),"") ->  | Q179: =IF(ISNUMBER($N179),DisimulateNexus($I$8:$I$17,L$8:L$17,Q$3,Q$4),"") -> 
A180: 173 | B180: 2015 | C180: 6 | D180: 22 | E180: 4 | F180: 1 | G180: 0 | O180: =IF(ISNUMBER($N180),DisimulateNexus($I$8:$I$17,J$8:J$17,O$3,O$4),"") ->  | P180: =IF(ISNUMBER($N180),DisimulateNexus($I$8:$I$17,K$8:K$17,P$3,P$4),"") ->  | Q180: =IF(ISNUMBER($N180),DisimulateNexus($I$8:$I$17,L$8:L$17,Q$3,Q$4),"") -> 
A181: 174 | B181: 2015 | C181: 6 | D181: 23 | E181: 7 | F181: 2 | G181: 5 | O181: =IF(ISNUMBER($N181),DisimulateNexus($I$8:$I$17,J$8:J$17,O$3,O$4),"") ->  | P181: =IF(ISNUMBER($N181),DisimulateNexus($I$8:$I$17,K$8:K$17,P$3,P$4),"") ->  | Q181: =IF(ISNUMBER($N181),DisimulateNexus($I$8:$I$17,L$8:L$17,Q$3,Q$4),"") -> 
A182: 175 | B182: 2015 | C182: 6 | D182: 24 | E182: 5 | F182: 7 | G182: 9 | O182: =IF(ISNUMBER($N182),DisimulateNexus($I$8:$I$17,J$8:J$17,O$3,O$4),"") ->  | P182: =IF(ISNUMBER($N182),DisimulateNexus($I$8:$I$17,K$8:K$17,P$3,P$4),"") ->  | Q182: =IF(ISNUMBER($N182),DisimulateNexus($I$8:$I$17,L$8:L$17,Q$3,Q$4),"") -> 
A183: 176 | B183: 2015 | C183: 6 | D183: 25 | E183: 7 | F183: 9 | G183: 5 | O183: =IF(ISNUMBER($N183),DisimulateNexus($I$8:$I$17,J$8:J$17,O$3,O$4),"") ->  | P183: =IF(ISNUMBER($N183),DisimulateNexus($I$8:$I$17,K$8:K$17,P$3,P$4),"") ->  | Q183: =IF(ISNUMBER($N183),DisimulateNexus($I$8:$I$17,L$8:L$17,Q$3,Q$4),"") -> 
A184: 177 | B184: 2015 | C184: 6 | D184: 26 | E184: 7 | F184: 2 | G184: 3 | O184: =IF(ISNUMBER($N184),DisimulateNexus($I$8:$I$17,J$8:J$17,O$3,O$4),"") ->  | P184: =IF(ISNUMBER($N184),DisimulateNexus($I$8:$I$17,K$8:K$17,P$3,P$4),"") ->  | Q184: =IF(ISNUMBER($N184),DisimulateNexus($I$8:$I$17,L$8:L$17,Q$3,Q$4),"") -> 
A185: 178 | B185: 2015 | C185: 6 | D185: 27 | E185: 3 | F185: 8 | G185: 9 | O185: =IF(ISNUMBER($N185),DisimulateNexus($I$8:$I$17,J$8:J$17,O$3,O$4),"") ->  | P185: =IF(ISNUMBER($N185),DisimulateNexus($I$8:$I$17,K$8:K$17,P$3,P$4),"") ->  | Q185: =IF(ISNUMBER($N185),DisimulateNexus($I$8:$I$17,L$8:L$17,Q$3,Q$4),"") -> 
A186: 179 | B186: 2015 | C186: 6 | D186: 28 | E186: 2 | F186: 4 | G186: 4 | O186: =IF(ISNUMBER($N186),DisimulateNexus($I$8:$I$17,J$8:J$17,O$3,O$4),"") ->  | P186: =IF(ISNUMBER($N186),DisimulateNexus($I$8:$I$17,K$8:K$17,P$3,P$4),"") ->  | Q186: =IF(ISNUMBER($N186),DisimulateNexus($I$8:$I$17,L$8:L$17,Q$3,Q$4),"") -> 
A187: 180 | B187: 2015 | C187: 6 | D187: 29 | E187: 1 | F187: 6 | G187: 9 | O187: =IF(ISNUMBER($N187),DisimulateNexus($I$8:$I$17,J$8:J$17,O$3,O$4),"") ->  | P187: =IF(ISNUMBER($N187),DisimulateNexus($I$8:$I$17,K$8:K$17,P$3,P$4),"") ->  | Q187: =IF(ISNUMBER($N187),DisimulateNexus($I$8:$I$17,L$8:L$17,Q$3,Q$4),"") -> 
A188: 181 | B188: 2015 | C188: 6 | D188: 30 | E188: 8 | F188: 9 | G188: 6 | O188: =IF(ISNUMBER($N188),DisimulateNexus($I$8:$I$17,J$8:J$17,O$3,O$4),"") ->  | P188: =IF(ISNUMBER($N188),DisimulateNexus($I$8:$I$17,K$8:K$17,P$3,P$4),"") ->  | Q188: =IF(ISNUMBER($N188),DisimulateNexus($I$8:$I$17,L$8:L$17,Q$3,Q$4),"") -> 
A189: 182 | B189: 2015 | C189: 7 | D189: 1 | E189: 1 | F189: 7 | G189: 8 | O189: =IF(ISNUMBER($N189),DisimulateNexus($I$8:$I$17,J$8:J$17,O$3,O$4),"") ->  | P189: =IF(ISNUMBER($N189),DisimulateNexus($I$8:$I$17,K$8:K$17,P$3,P$4),"") ->  | Q189: =IF(ISNUMBER($N189),DisimulateNexus($I$8:$I$17,L$8:L$17,Q$3,Q$4),"") -> 
A190: 183 | B190: 2015 | C190: 7 | D190: 2 | E190: 6 | F190: 2 | G190: 5 | O190: =IF(ISNUMBER($N190),DisimulateNexus($I$8:$I$17,J$8:J$17,O$3,O$4),"") ->  | P190: =IF(ISNUMBER($N190),DisimulateNexus($I$8:$I$17,K$8:K$17,P$3,P$4),"") ->  | Q190: =IF(ISNUMBER($N190),DisimulateNexus($I$8:$I$17,L$8:L$17,Q$3,Q$4),"") -> 
A191: 184 | B191: 2015 | C191: 7 | D191: 3 | E191: 0 | F191: 7 | G191: 0 | O191: =IF(ISNUMBER($N191),DisimulateNexus($I$8:$I$17,J$8:J$17,O$3,O$4),"") ->  | P191: =IF(ISNUMBER($N191),DisimulateNexus($I$8:$I$17,K$8:K$17,P$3,P$4),"") ->  | Q191: =IF(ISNUMBER($N191),DisimulateNexus($I$8:$I$17,L$8:L$17,Q$3,Q$4),"") -> 
A192: 185 | B192: 2015 | C192: 7 | D192: 4 | E192: 8 | F192: 6 | G192: 9 | O192: =IF(ISNUMBER($N192),DisimulateNexus($I$8:$I$17,J$8:J$17,O$3,O$4),"") ->  | P192: =IF(ISNUMBER($N192),DisimulateNexus($I$8:$I$17,K$8:K$17,P$3,P$4),"") ->  | Q192: =IF(ISNUMBER($N192),DisimulateNexus($I$8:$I$17,L$8:L$17,Q$3,Q$4),"") -> 
A193: 186 | B193: 2015 | C193: 7 | D193: 5 | E193: 2 | F193: 1 | G193: 2 | O193: =IF(ISNUMBER($N193),DisimulateNexus($I$8:$I$17,J$8:J$17,O$3,O$4),"") ->  | P193: =IF(ISNUMBER($N193),DisimulateNexus($I$8:$I$17,K$8:K$17,P$3,P$4),"") ->  | Q193: =IF(ISNUMBER($N193),DisimulateNexus($I$8:$I$17,L$8:L$17,Q$3,Q$4),"") -> 
A194: 187 | B194: 2015 | C194: 7 | D194: 6 | E194: 3 | F194: 1 | G194: 1 | O194: =IF(ISNUMBER($N194),DisimulateNexus($I$8:$I$17,J$8:J$17,O$3,O$4),"") ->  | P194: =IF(ISNUMBER($N194),DisimulateNexus($I$8:$I$17,K$8:K$17,P$3,P$4),"") ->  | Q194: =IF(ISNUMBER($N194),DisimulateNexus($I$8:$I$17,L$8:L$17,Q$3,Q$4),"") -> 
A195: 188 | B195: 2015 | C195: 7 | D195: 7 | E195: 1 | F195: 4 | G195: 6 | O195: =IF(ISNUMBER($N195),DisimulateNexus($I$8:$I$17,J$8:J$17,O$3,O$4),"") ->  | P195: =IF(ISNUMBER($N195),DisimulateNexus($I$8:$I$17,K$8:K$17,P$3,P$4),"") ->  | Q195: =IF(ISNUMBER($N195),DisimulateNexus($I$8:$I$17,L$8:L$17,Q$3,Q$4),"") -> 
A196: 189 | B196: 2015 | C196: 7 | D196: 8 | E196: 6 | F196: 6 | G196: 5 | O196: =IF(ISNUMBER($N196),DisimulateNexus($I$8:$I$17,J$8:J$17,O$3,O$4),"") ->  | P196: =IF(ISNUMBER($N196),DisimulateNexus($I$8:$I$17,K$8:K$17,P$3,P$4),"") ->  | Q196: =IF(ISNUMBER($N196),DisimulateNexus($I$8:$I$17,L$8:L$17,Q$3,Q$4),"") -> 
A197: 190 | B197: 2015 | C197: 7 | D197: 9 | E197: 6 | F197: 6 | G197: 1 | O197: =IF(ISNUMBER($N197),DisimulateNexus($I$8:$I$17,J$8:J$17,O$3,O$4),"") ->  | P197: =IF(ISNUMBER($N197),DisimulateNexus($I$8:$I$17,K$8:K$17,P$3,P$4),"") ->  | Q197: =IF(ISNUMBER($N197),DisimulateNexus($I$8:$I$17,L$8:L$17,Q$3,Q$4),"") -> 
A198: 191 | B198: 2015 | C198: 7 | D198: 10 | E198: 4 | F198: 2 | G198: 2 | O198: =IF(ISNUMBER($N198),DisimulateNexus($I$8:$I$17,J$8:J$17,O$3,O$4),"") ->  | P198: =IF(ISNUMBER($N198),DisimulateNexus($I$8:$I$17,K$8:K$17,P$3,P$4),"") ->  | Q198: =IF(ISNUMBER($N198),DisimulateNexus($I$8:$I$17,L$8:L$17,Q$3,Q$4),"") -> 
A199: 192 | B199: 2015 | C199: 7 | D199: 11 | O199: =IF(ISNUMBER($N199),DisimulateNexus($I$8:$I$17,J$8:J$17,O$3,O$4),"") ->  | P199: =IF(ISNUMBER($N199),DisimulateNexus($I$8:$I$17,K$8:K$17,P$3,P$4),"") ->  | Q199: =IF(ISNUMBER($N199),DisimulateNexus($I$8:$I$17,L$8:L$17,Q$3,Q$4),"") -> 
A200: 193 | B200: 2015 | C200: 7 | D200: 12 | O200: =IF(ISNUMBER($N200),DisimulateNexus($I$8:$I$17,J$8:J$17,O$3,O$4),"") ->  | P200: =IF(ISNUMBER($N200),DisimulateNexus($I$8:$I$17,K$8:K$17,P$3,P$4),"") ->  | Q200: =IF(ISNUMBER($N200),DisimulateNexus($I$8:$I$17,L$8:L$17,Q$3,Q$4),"") -> 
... 1307 more rows
